Workbook

Sheet Problem
J4: INDUSTRIES | N4: HOUSEHOLDS | U4: GOVERNMENT | AA4: FINANCIAL INTERMEDIATION
AM5: n
I6: VALUE | J6: CAPITAL | K6: GENERAL | L6: NON_DUR | N6: BOURGS | O6: PRLTRT | P6: DPNDNT | U6: LOCAL | V6: NATIONAL | Y6: COMMERCIAL BANKING | AB6: RETAIL BANKING | AE6: NATIONAL BANKING | AI6: SAVINGS | AJ6: INVESTMENT | AM6: -0.04535997347
E7: Physical | I7: 0 | J7: 1 | K7: 2 | L7: 3 | N7: 4 | O7: 5 | P7: 6 | R7: Monetary | U7: 7 | V7: 8 | Y7: 9 | Z7: 9 | AB7: 10 | AC7: 10 | AE7: 11 | AF7: 11
E8: Stocks | I8: 0 | J8: I1 | K8: I2 | L8: I3 | N8: L1 | O8: L2 | P8: L3 | R8: Stocks | U8: G1 | V8: G2 | Y8: FI | Z8: FI | AB8: FL | AC8: FL | AE8: FG | AF8: FG
E9: A+B+C > | I9: 0 | J9: 0 | K9: 0 | L9: 0 | N9: 0 | O9: 0 | P9: 0 | R9: A+B+C > | U9: 0 | V9: 0 | Y9: 0 | Z9: 0 | AB9: 0 | AC9: 0 | AE9: 0 | AF9: 0
Y10: g | Z10: k | AB10: g | AC10: k | AE10: g | AF10: k | AL10: g | AM10: k | AN10: Margin
E11: 0 | F11: 0 | I11: 271197.0825 | J11: -1000 | K11: -2250 | L11: -3200 | N11: -876 | O11: -8766 | P11: -100 | S11: 0 | T11: 0 | U11: =-U9-SUM(U12:U25) -> -9292.361207 | V11: -14653.93535 | Y11: 0 | Z11: 0 | AB11: 0 | AC11: 0 | AE11: 0 | AF11: 0 | AG11: 0 | AH11: 0 | AL11: =Y23+AB24+AE25 -> 652974.8317 | AM11: =Z23+AC24+AF25 -> -812950.7788 | AN11: 0.1111111111
C12: INDUSTRIES | D12: CAPITAL | E12: 1 | F12: I1 | I12: -71184.30104 | J12: 300 | K12: 600 | L12: 800 | N12: 20 | O12: 600 | P12: 0 | S12: 1 | T12: I1 | U12: 512.5268333 | V12: 854.2113889 | Y12: 0 | Z12: 158187.2942 | AB12: 0 | AC12: 0 | AE12: 0 | AF12: 0 | AG12: I1 | AH12: 1 | AI12: CAPITAL | AJ12: INDUSTRIES
D13: GENERAL | E13: 2 | F13: I2 | I13: -62182.93032 | J13: 250 | K13: 300 | L13: 700 | N13: 30 | O13: 600 | P13: 0 | S13: 2 | T13: I2 | U13: 447.7168974 | V13: 746.1948291 | Y13: 0 | Z13: 138184.2276 | AB13: 0 | AC13: 0 | AE13: 0 | AF13: 0 | AG13: I2 | AH13: 2 | AI13: GENERAL
D14: NON_DUR | E14: 3 | F14: I3 | I14: -53889.25987 | J14: 200 | K14: 450 | L14: 500 | N14: 20 | O14: 600 | P14: 0 | S14: 3 | T14: I3 | U14: 388.0025069 | V14: 646.6708449 | Y14: 0 | Z14: 119753.8602 | AB14: 0 | AC14: 0 | AE14: 0 | AF14: 0 | AG14: I3 | AH14: 3 | AI14: NON_DUR | AL14: 1/T | AM14: T
AL15: =1/AM15 -> 0.1666665866 | AM15: =GetTerm(NuK, Kppa0K, Gmma0K, Margin) -> 6.000002881
C16: HOUSEHOLDS | D16: BOURGS | E16: 4 | F16: L1 | I16: -57158.31733 | J16: 229.325283 | K16: 685.7584026 | L16: 996.0662009 | N16: 781.0724703 | O16: 198.4561854 | P16: 0 | S16: 4 | T16: L1 | U16: 6993.752238 | V16: 11656.25373 | Y16: -300814.5973 | Z16: 0 | AB16: -318736.3903 | AC16: 0 | AE16: 0 | AF16: 0 | AG16: L1 | AH16: 4 | AI16: BOURGS | AJ16: HOUSEHOLDS
D17: PRLTRT | E17: 5 | F17: L2 | I17: -11869.11327 | J17: 12.97586183 | K17: 178.8354882 | L17: 159.6191781 | N17: 5.24169274 | O17: 6569.355352 | P17: 0 | S17: 5 | T17: L2 | U17: 1460.042177 | V17: 2433.403628 | Y17: -33423.84415 | Z17: 0 | AB17: 0 | AC17: 396825.3968 | AE17: 0 | AF17: 0 | AG17: L2 | AH17: 5 | AI17: PRLTRT | AM17: -n
D18: DPNDNT | E18: 6 | F18: L3 | I18: -1641.242839 | J18: 1.297586183 | K18: 17.88354882 | L18: 15.96191781 | N18: 1 | O18: 20 | P18: 100 | S18: 6 | T18: L3 | U18: -1230.932129 | V18: -2051.553549 | Y18: 0 | Z18: 0 | AB18: 0 | AC18: 0 | AE18: 0 | AF18: 0 | AG18: L3 | AH18: 6 | AI18: DPNDNT | AM18: =-AM6 -> 0.04535997347
C20: GOVERNANCE | D20: LOCAL | E20: 7 | F20: G1 | I20: -4646.180604 | J20: 1.853286774 | K20: 2.336067382 | L20: 5.810098497 | N20: 6.88235633 | O20: 65.55708379 | P20: 0 | S20: 7 | T20: G1 | U20: 0 | V20: 0 | Y20: 0 | Z20: 0 | AB20: 0 | AC20: 0 | AE20: 0 | AF20: 0 | AG20: G1 | AH20: 7 | AI20: LOCAL | AJ20: GOVERNANCE
D21: NATIONAL | E21: 8 | F21: G2 | I21: -7076.967673 | J21: 2.792341163 | K21: 2.747746231 | L21: 8.18893145 | N21: 10.55106472 | O21: 100.0052512 | P21: 0 | S21: 8 | T21: G2 | U21: 500 | V21: 0 | Y21: 0 | Z21: 0 | AB21: 0 | AC21: 0 | AE21: 0 | AF21: 0 | AG21: G2 | AH21: 8 | AI21: NATIONAL | AL21: NPV | AM21: =(1+AM18)^(-AM15) -> 0.7663104396
C23: BANKING | D23: CMRCL | E23: =1+E21 -> 9 | F23: FI | I23: -792.7687878 | J23: 0.3429700101 | K23: 1.162848514 | L23: 1.610334287 | N23: 1.198652935 | O23: 6.339842385 | P23: 0 | S23: =1+S21 -> 9 | T23: FI | U23: 113.252684 | V23: 188.7544733 | Y23: =-SUM(Y9,Y11:Y21,Y24:Y25) -> 334238.4415 | Z23: =-SUM(Z9,Z11:Z21,Z24:Z25) -> -416125.382 | AB23: 0 | AC23: 0 | AE23: 0 | AF23: 0 | AG23: F1 | AH23: 9 | AI23: CMRCL | AJ23: BANKING
D24: RETAIL | E24: =1+E23 -> 10 | F24: FL | I24: -756 | J24: 1.412671018 | K24: 11.27589825 | L24: 12.74333897 | N24: 0.05376301851 | O24: 6.286284795 | P24: 0 | S24: =1+S23 -> 10 | T24: FL | U24: 108 | V24: 180 | Y24: 0 | Z24: 0 | AB24: =-SUM(AB9,AB11:AB23,AB25) -> 318736.3903 | AC24: =-SUM(AC9,AC11:AC23,AC25) -> -396825.3968 | AE24: 0 | AF24: 0 | AG24: F2 | AH24: 10 | AI24: RETAIL | AL24: 1/NPV-1 | AM24: =(1/AM21)-1 -> 0.3049541652
D25: GOVT | E25: =1+E24 -> 11 | F25: FG | I25: 0 | J25: 0 | K25: 0 | L25: 0 | N25: 0 | O25: 0 | P25: 0 | S25: =1+S24 -> 11 | T25: FG | Y25: 0 | Z25: 0 | AB25: 0 | AC25: 0 | AE25: =-SUM(AE9,AE11:AE24) -> 0 | AF25: =-SUM(AF9,AF11:AF24) -> 0 | AG25: FG | AH25: 11 | AI25: GOVT
I26: 0 | J26: I1 | K26: I2 | L26: I3 | N26: L1 | O26: L2 | P26: L3 | U26: G1 | V26: G2 | Y26: FI | Z26: FI | AB26: FL | AC26: FL | AE26: FG | AF26: FG
I27: 0 | J27: 1 | K27: 2 | L27: 3 | N27: 4 | O27: 5 | P27: 6 | U27: 7 | V27: 8 | Y27: 9 | Z27: 9 | AB27: 10 | AC27: 10 | AE27: 11 | AF27: 11
I28: VALUE | J28: CAPITAL | K28: GENERAL | L28: NON_DUR | N28: BOURGS | O28: PRLTRT | P28: DPNDNT | U28: LOCAL | V28: NATIONAL | Y28: COMMERCIAL BANKING | AB28: RETAIL BANKING | AE28: NATIONAL BANKING
E29: Turnover | I29: 0 | J29: 1 | K29: 2 | L29: 3 | N29: 4 | O29: 5 | P29: 6 | R29: Turnover | U29: 7 | V29: 8 | Y29: 9 | Z29: 9 | AB29: 10 | AC29: 10 | AE29: 11 | AF29: 11
E30: Fractions | I30: 0 | J30: I1 | K30: I2 | L30: I3 | N30: L1 | O30: L2 | P30: L3 | R30: Fractions | U30: G1 | V30: G2 | Y30: FI | Z30: FI | AB30: FL | AC30: FL | AE30: FG | AF30: FG
E31: V > | I31: 1 | J31: 0.1 | K31: 0.3333333333 | L31: 1 | N31: 1 | O31: 1 | P31: 1 | R31: V > | U31: 1 | V31: 1 | Y31: 0.1666665866 | Z31: =AM18 -> 0.04535997347 | AB31: 0.1666665866 | AC31: =AM18 -> 0.04535997347 | AE31: 0.1666665866 | AF31: =AM18 -> 0.04535997347 | AH31: < | AI31: 1/T | AJ31: -n
I32: 0 | J32: I1 | K32: I2 | L32: I3 | N32: L1 | O32: L2 | P32: L3 | U32: G1 | V32: G2 | Y32: FI | Z32: FI | AB32: FL | AC32: FL | AE32: FG | AF32: FG
I33: 0 | J33: 1 | K33: 2 | L33: 3 | N33: 4 | O33: 5 | P33: 6 | U33: 7 | V33: 8 | Y33: 9 | Z33: 9 | AB33: 10 | AC33: 10 | AE33: 11 | AF33: 11
I34: VALUE | J34: CAPITAL | K34: GENERAL | L34: NON_DUR | N34: BOURGS | O34: PRLTRT | P34: DPNDNT | U34: LOCAL | V34: NATIONAL | Y34: COMMERCIAL BANKING | AB34: RETAIL BANKING | AE34: NATIONAL BANKING
I35: 0 | J35: 1 | K35: 2 | L35: 3 | N35: 4 | O35: 5 | P35: 6 | U35: 7 | V35: 8 | Y35: 9 | Z35: 9 | AB35: 10 | AC35: 10 | AE35: 11 | AF35: 11 | AI35: =AM21 -> 0.7663104396 | AJ35: NPV | AK35: =AM21 -> 0.7663104396 | AL35: NPV | AM35: =AM21 -> 0.7663104396
E36: Rates | I36: 0 | J36: I1 | K36: I2 | L36: I3 | N36: L1 | O36: L2 | P36: L3 | R36: Rates | U36: G1 | V36: G2 | Y36: FI | Z36: FI | AB36: FL | AC36: FL | AE36: FG | AF36: FG
E37: E > | I37: =I65/I$59 -> 0 | J37: =J$31*J9 -> 0 | K37: =K$31*K9 -> 0 | L37: =L$31*L9 -> 0 | N37: =N$31*N9 -> 0 | O37: =O$31*O9 -> 0 | P37: =P$31*P9 -> 0 | R37: E > | U37: =U$31*U9 -> 0 | V37: 0 | Y37: =Y$31*Y9 -> 0 | Z37: 0 | AB37: =AB$31*AB9 -> 0 | AC37: 0 | AE37: =AE$31*AE9 -> 0 | AF37: 0
Y38: g / T | Z38: -nkk | AB38: g / T | AC38: -nkk | AE38: g / T | AF38: -nkk
E39: 0 | F39: 0 | I39: =I67/I$59 -> 283170.2275 | J39: =J$31*J11 -> -100 | K39: -750 | L39: -3200 | N39: =N$31*N11 -> -876 | O39: -8766 | P39: -100 | S39: 0 | T39: 0 | U39: =U$31*U11 -> -9292.361207 | V39: =V$31*V11 -> -14653.93535 | Y39: =Y$31*Y11 -> 0 | Z39: 0 | AB39: =AB$31*AB11 -> 0 | AC39: 0 | AE39: =AE$31*AE11 -> 0 | AF39: 0 | AG39: 0 | AH39: 0
C40: INDUSTRIES | D40: CAPITAL | E40: 1 | F40: I1 | I40: =I68/I$59 -> -75455.355 | J40: 30 | K40: 200 | L40: 800 | N40: 20 | O40: 600 | P40: 0 | S40: 1 | T40: I1 | U40: 512.5268333 | V40: 854.2113889 | Y40: 0 | Z40: 7175.37147 | AB40: 0 | AC40: 0 | AE40: 0 | AF40: 0 | AG40: I1 | AH40: 1 | AI40: CAPITAL | AJ40: INDUSTRIES
D41: GENERAL | E41: 2 | F41: I2 | I41: =I69/I$59 -> -65913.90186 | J41: 25 | K41: 100 | L41: 700 | N41: 30 | O41: 600 | P41: 0 | S41: 2 | T41: I2 | U41: 447.7168974 | V41: 746.1948291 | Y41: 0 | Z41: 6268.032898 | AB41: 0 | AC41: 0 | AE41: 0 | AF41: 0 | AG41: I2 | AH41: 2 | AI41: GENERAL
D42: NON_DUR | E42: 3 | F42: I3 | I42: =I70/I$59 -> -57122.61184 | J42: 20 | K42: 150 | L42: 500 | N42: 20 | O42: 600 | P42: 0 | S42: 3 | T42: I3 | U42: 388.0025069 | V42: 646.6708449 | Y42: 0 | Z42: 5432.03192 | AB42: 0 | AC42: 0 | AE42: 0 | AF42: 0 | AG42: I3 | AH42: 3 | AI42: NON_DUR
C44: HOUSEHOLDS | D44: BOURGS | E44: 4 | F44: L1 | I44: =I72/I$59 -> -50738.77335 | J44: =J$31*J16 -> 22.9325283 | K44: 228.5861342 | L44: 996.0662009 | N44: =N$31*N16 -> 781.0724703 | O44: 198.4561854 | P44: 0 | S44: 4 | T44: L1 | U44: =U$31*U16 -> 6993.752238 | V44: 11656.25373 | Y44: =Y$31*Y16 -> -50135.74215 | Z44: 0 | AB44: =AB$31*AB16 -> -53122.70621 | AC44: 0 | AE44: =AE$31*AE16 -> 0 | AF44: 0 | AG44: L1 | AH44: 4 | AI44: BOURGS | AJ44: HOUSEHOLDS
D45: PRLTRT | E45: 5 | F45: L2 | I45: =I73/I$59 -> -21966.43627 | J45: 1.297586183 | K45: 59.61182941 | L45: 159.6191781 | N45: 5.24169274 | O45: 6569.355352 | P45: 0 | S45: 5 | T45: L2 | U45: 1460.042177 | V45: 2433.403628 | Y45: -5570.638016 | Z45: 0 | AB45: 0 | AC45: 17999.98947 | AE45: 0 | AF45: 0 | AG45: L2 | AH45: 5 | AI45: PRLTRT
D46: DPNDNT | E46: 6 | F46: L3 | I46: =I74/I$59 -> 2.032609837e-05 | J46: 0.1297586183 | K46: 5.961182941 | L46: 15.96191781 | N46: 1 | O46: 20 | P46: 100 | S46: 6 | T46: L3 | U46: -1230.932129 | V46: -2051.553549 | Y46: 0 | Z46: 0 | AB46: 0 | AC46: 0 | AE46: 0 | AF46: 0 | AG46: L3 | AH46: 6 | AI46: DPNDNT
C48: GOVERNANCE | D48: LOCAL | E48: 7 | F48: G1 | I48: =I76/I$59 -> -4646.180546 | J48: =J$31*J20 -> 0.1853286774 | K48: 0.7786891274 | L48: 5.810098497 | N48: =N$31*N20 -> 6.88235633 | O48: 65.55708379 | P48: 0 | S48: 7 | T48: G1 | U48: =U$31*U20 -> 0 | V48: 0 | Y48: =Y$31*Y20 -> 0 | Z48: 0 | AB48: =AB$31*AB20 -> 0 | AC48: 0 | AE48: =AE$31*AE20 -> 0 | AF48: 0 | AG48: G1 | AH48: 7 | AI48: LOCAL | AJ48: GOVERNANCE
D49: NATIONAL | E49: 8 | F49: G2 | I49: =I77/I$59 -> -7326.967585 | J49: 0.2792341163 | K49: 0.9159154104 | L49: 8.18893145 | N49: 10.55106472 | O49: 100.0052512 | P49: 0 | S49: 8 | T49: G2 | U49: 500 | V49: 0 | Y49: 0 | Z49: 0 | AB49: 0 | AC49: 0 | AE49: 0 | AF49: 0 | AG49: G2 | AH49: 8 | AI49: NATIONAL
C51: BANKING | D51: CMRCL | E51: =1+E49 -> 9 | F51: FI | I51: =I79/I$59 -> -0.0005421701462 | J51: =J$31*J23 -> 0.03429700101 | K51: 0.3876161713 | L51: 1.610334287 | N51: =N$31*N23 -> 1.198652935 | O51: 6.339842385 | P51: 0 | S51: =1+S49 -> 9 | T51: FI | U51: =U$31*U23 -> 113.252684 | V51: 188.7544733 | Y51: =Y$31*Y23 -> 55706.38016 | Z51: -18875.43629 | AB51: =AB$31*AB23 -> 0 | AC51: 0 | AE51: =AE$31*AE23 -> 0 | AF51: 0 | AG51: F1 | AH51: 9 | AI51: CMRCL | AJ51: BANKING
D52: RETAIL | E52: =1+E51 -> 10 | F52: FL | I52: =I80/I$59 -> -0.0005170241657 | J52: 0.1412671018 | K52: 3.758632751 | L52: 12.74333897 | N52: 0.05376301851 | O52: 6.286284795 | P52: 0 | S52: =1+S51 -> 10 | T52: FL | U52: 108 | V52: 180 | Y52: 0 | Z52: 0 | AB52: 53122.70621 | AC52: -17999.98947 | AE52: 0 | AF52: 0 | AG52: F2 | AH52: 10 | AI52: RETAIL
D53: GOVT | E53: =1+E52 -> 11 | F53: FG | I53: =I81/I$59 -> 0 | J53: 0 | K53: 0 | L53: 0 | N53: 0 | O53: 0 | P53: 0 | S53: =1+S52 -> 11 | T53: FG | U53: 0 | V53: 0 | Y53: 0 | Z53: 0 | AB53: 0 | AC53: 0 | AE53: 0 | AF53: 0 | AG53: FG | AH53: 11 | AI53: GOVT
I54: 0 | J54: I1 | K54: I2 | L54: I3 | N54: L1 | O54: L2 | P54: L3 | U54: G1 | V54: G2 | Y54: FI | Z54: FI | AB54: FL | AC54: FL | AE54: FG | AF54: FG
I55: 0 | J55: 1 | K55: 2 | L55: 3 | N55: 4 | O55: 5 | P55: 6 | U55: 7 | V55: 8 | Y55: 9 | Z55: 9 | AB55: 10 | AC55: 10 | AE55: 11 | AF55: 11
I56: VALUE | J56: CAPITAL | K56: GENERAL | L56: NON_DUR | N56: BOURGS | O56: PRLTRT | P56: DPNDNT | U56: LOCAL | V56: NATIONAL | Y56: COMMERCIAL BANKING | AB56: RETAIL BANKING | AE56: NATIONAL BANKING
I57: 0 | J57: 1 | K57: 2 | L57: 3 | N57: 4 | O57: 5 | P57: 6 | U57: 7 | V57: 8 | Y57: 9 | Z57: 9 | AB57: 10 | AC57: 10 | AE57: 11 | AF57: 11
E58: Prices | I58: 0 | J58: I1 | K58: I2 | L58: I3 | N58: L1 | O58: L2 | P58: L3 | R58: Prices | U58: G1 | V58: G2 | Y58: FI | Z58: FI | AB58: FL | AC58: FL | AE58: FG | AF58: FG
E59: P > | I59: 2 | J59: 1509.107141 | K59: 175.7704097 | L59: 35.70163337 | N59: 1068.99988 | O59: 19.99999975 | P59: 0 | R59: P > | U59: 1 | V59: 1 | Y59: =1/AI35-1 -> 0.3049541652 | Z59: 1 | AB59: =1/AK35-1 -> 0.3049541652 | AC59: 1 | AE59: =1/AM35-1 -> 0.3049541652 | AF59: 1 | AH59: < | AI59: 1/NPV-1 | AJ59: 1
I60: 0 | J60: I1 | K60: I2 | L60: I3 | N60: L1 | O60: L2 | P60: L3 | U60: G1 | V60: G2 | Y60: FI | Z60: FI | AB60: FL | AC60: FL | AE60: FG | AF60: FG
I61: 0 | J61: 1 | K61: 2 | L61: 3 | N61: 4 | O61: 5 | P61: 6 | U61: 7 | V61: 8 | Y61: 9 | Z61: 9 | AB61: 10 | AC61: 10 | AE61: 11 | AF61: 11 | AI61: Passive | AJ61: Debt
I62: VALUE | J62: CAPITAL | K62: GENERAL | L62: NON_DUR | N62: BOURGS | O62: PRLTRT | P62: DPNDNT | U62: LOCAL | V62: NATIONAL | Y62: COMMERCIAL BANKING | AB62: RETAIL BANKING | AE62: NATIONAL BANKING | AI62: Income | AJ62: Service
I63: 0 | J63: 1 | K63: 2 | L63: 3 | N63: 4 | O63: 5 | P63: 6 | U63: 7 | V63: 8 | Y63: 9 | Z63: 9 | AB63: 10 | AC63: 10 | AE63: 11 | AF63: 11
E64: Net Cash | I64: 0 | J64: I1 | K64: I2 | L64: I3 | N64: L1 | O64: L2 | P64: L3 | R64: Financial | U64: G1 | V64: G2 | Y64: FI | Z64: FI | AB64: FL | AC64: FL | AE64: FG | AF64: FG
E65: Flows > | I65: =-SUM(J65:P65,U65:AF65) -> 0 | J65: =J$59*J37 -> 0 | K65: =K$59*K37 -> 0 | L65: =L$59*L37 -> 0 | N65: =N$59*N37 -> 0 | O65: =O$59*O37 -> 0 | P65: =P$59*P37 -> 0 | R65: Flows > | U65: =U$59*U37 -> 0 | V65: 0 | Y65: =Y$59*Y37 -> 0 | Z65: =Z$59*Z37 -> 0 | AB65: =AB$59*AB37 -> 0 | AC65: 0 | AE65: =AE$59*AE37 -> 0 | AF65: 0
G66: r - e | I66: -s | Y66: (1-1/NPV)g/T | Z66: -nkk | AB66: (1-1/NPV)g/T | AC66: -nkk | AE66: (1-1/NPV)g/T | AF66: -nkk
E67: 0 | F67: 0 | G67: =-SUM(G68:G81) -> 7.003109204e-11 | I67: =-I65-SUM(I68:I81) -> 566340.455 | J67: =-J65-SUM(J68:J81) -> -150910.7141 | K67: -131827.8073 | L67: -114245.2268 | N67: =-N65-SUM(N68:N81) -> -101477.5179 | O67: -43932.89241 | P67: 0 | S67: 0 | T67: 0 | U67: =-U65-SUM(U68:U81) -> -9292.361207 | V67: -14653.93535 | Y67: =-Y65-SUM(Y68:Y81) -> 0 | Z67: 0 | AB67: =-AB65-SUM(AB68:AB81) -> 0 | AC67: 0 | AE67: =-AE65-SUM(AE68:AE81) -> 0 | AF67: 0 | AG67: 0 | AH67: 0
C68: INDUSTRIES | D68: CAPITAL | E68: 1 | F68: I1 | G68: =J67-I68 -> -0.00409090161 | I68: =-SUM(J68:P68,U68:AF68) -> -150910.71 | J68: =J$59*J40 -> 45273.21423 | K68: 35154.08194 | L68: 28561.30669 | N68: =N$59*N40 -> 21379.99759 | O68: 11999.99985 | P68: 0 | S68: 1 | T68: I1 | U68: =U$59*U40 -> 512.5268333 | V68: 854.2113889 | Y68: =Y$59*Y40 -> 0 | Z68: 7175.37147 | AB68: =AB$59*AB40 -> 0 | AC68: 0 | AE68: =AE$59*AE40 -> 0 | AF68: 0 | AG68: I1 | AH68: 1 | AI68: CAPITAL | AJ68: INDUSTRIES
D69: GENERAL | E69: 2 | F69: I2 | G69: =K67-I69 -> -0.003573599912 | I69: =-SUM(J69:P69,U69:AF69) -> -131827.8037 | J69: 37727.67852 | K69: 17577.04097 | L69: 24991.14336 | N69: 32069.99639 | O69: 11999.99985 | P69: 0 | S69: 2 | T69: I2 | U69: 447.7168974 | V69: 746.1948291 | Y69: =Y$59*Y41 -> 0 | Z69: 6268.032898 | AB69: =AB$59*AB41 -> 0 | AC69: 0 | AE69: =AE$59*AE41 -> 0 | AF69: 0 | AG69: I2 | AH69: 2 | AI69: GENERAL
D70: NON_DUR | E70: 3 | F70: I3 | G70: =L67-I70 -> -0.00309696974 | I70: -114245.2237 | J70: 30182.14282 | K70: 26365.56146 | L70: 17850.81668 | N70: 21379.99759 | O70: 11999.99985 | P70: 0 | S70: 3 | T70: I3 | U70: 388.0025069 | V70: 646.6708449 | Y70: =Y$59*Y42 -> 0 | Z70: 5432.03192 | AB70: =AB$59*AB42 -> 0 | AC70: 0 | AE70: =AE$59*AE42 -> 0 | AF70: 0 | AG70: I3 | AH70: 3 | AI70: NON_DUR
C72: HOUSEHOLDS | D72: BOURGS | E72: 4 | F72: L1 | G72: =N67-I72 -> 0.02883326008 | I72: =-SUM(J72:P72,U72:AF72) -> -101477.5467 | J72: =J$59*J44 -> 34607.64222 | K72: 40178.67846 | L72: 35561.19031 | N72: 0 | O72: =O$59*O44 -> 3969.123659 | P72: =P$59*P44 -> 0 | S72: 4 | T72: L1 | U72: =U$59*U44 -> 6993.752238 | V72: 11656.25373 | Y72: =Y$59*Y44 -> -15289.10339 | Z72: 0 | AB72: =AB$59*AB44 -> -16199.99053 | AC72: 0 | AE72: =AE$59*AE44 -> 0 | AF72: 0 | AG72: L1 | AH72: 4 | AI72: BOURGS | AJ72: HOUSEHOLDS
D73: PRLTRT | E73: 5 | F73: L2 | G73: =O67-I73 -> -0.01985915284 | I73: -43932.87255 | J73: 1958.196574 | K73: 10477.99568 | L73: 5698.665374 | N73: =N$59*N45 -> 5603.368908 | O73: 0 | P73: =P$59*P45 -> 0 | S73: 5 | T73: L2 | U73: 1460.042177 | V73: 2433.403628 | Y73: =Y$59*Y45 -> -1698.789266 | Z73: 0 | AB73: =AB$59*AB45 -> 0 | AC73: 17999.98947 | AE73: =AE$59*AE45 -> 0 | AF73: 0 | AG73: L2 | AH73: 5 | AI73: PRLTRT
D74: DPNDNT | E74: 6 | F74: L3 | G74: =P67-I74 -> -4.065219673e-05 | I74: 4.065219673e-05 | J74: 195.8196574 | K74: 1047.799568 | L74: 569.8665374 | N74: =N$59*N46 -> 1068.99988 | O74: =O$59*O46 -> 399.999995 | P74: =P$59*P46 -> 0 | S74: 6 | T74: L3 | U74: -1230.932129 | V74: -2051.553549 | Y74: =Y$59*Y46 -> 0 | Z74: 0 | AB74: =AB$59*AB46 -> 0 | AC74: 0 | AE74: =AE$59*AE46 -> 0 | AF74: 0 | AG74: L3 | AH74: 6 | AI74: DPNDNT
C76: GOVERNANCE | D76: LOCAL | E76: 7 | F76: G1 | G76: =U67-I76 -> -0.0001150819662 | I76: =-SUM(J76:P76,U76:AF76) -> -9292.361092 | J76: =J$59*J48 -> 279.6808305 | K76: 136.870507 | L76: 207.4300064 | N76: =N$59*N48 -> 7357.238089 | O76: 1311.14166 | P76: 0 | S76: 7 | T76: G1 | U76: =U$59*U48 -> 0 | V76: 0 | Y76: =Y$59*Y48 -> 0 | Z76: 0 | AB76: =AB$59*AB48 -> 0 | AC76: 0 | AE76: =AE$59*AE48 -> 0 | AF76: 0 | AG76: G1 | AH76: 7 | AI76: LOCAL | AJ76: GOVERNANCE
D77: NATIONAL | E77: 8 | F77: G2 | G77: =V67-I77 -> -0.0001752905064 | I77: -14653.93517 | J77: 421.3941988 | K77: 160.990827 | L77: 292.3582283 | N77: 11279.08692 | O77: 2000.104999 | P77: 0 | S77: 8 | T77: G2 | U77: 500 | V77: 0 | Y77: =Y$59*Y49 -> 0 | Z77: 0 | AB77: =AB$59*AB49 -> 0 | AC77: 0 | AE77: =AE$59*AE49 -> 0 | AF77: 0 | AG77: G2 | AH77: 8 | AI77: NATIONAL
C79: BANKING | D79: CMRCL | E79: =1+E77 -> 9 | F79: FI | G79: =Y67+Z67-I79 -> 0.001084340292 | I79: =-SUM(J79:P79,U79:AF79) -> -0.001084340292 | J79: =J$59*J51 -> 51.75784914 | K79: 68.13145325 | L79: 57.49156432 | N79: =N$59*N51 -> 1281.359843 | O79: 126.7968461 | P79: 0 | S79: =1+S77 -> 9 | T79: FI | U79: =U$59*U51 -> 113.252684 | V79: 188.7544733 | Y79: =Y$59*Y51 -> 16987.89266 | Z79: -18875.43629 | AB79: =AB$59*AB51 -> 0 | AC79: 0 | AE79: =AE$59*AE51 -> 0 | AF79: 0 | AG79: F1 | AH79: 9 | AI79: CMRCL | AJ79: BANKING
D80: RETAIL | E80: =1+E79 -> 10 | F80: FL | G80: =AB67+AC67-I80 -> 0.001034048331 | I80: -0.001034048331 | J80: 213.1871922 | K80: 660.6564186 | L80: 454.9580159 | N80: 57.47266031 | O80: 125.7256943 | P80: 0 | S80: =1+S79 -> 10 | T80: FL | U80: 108 | V80: 180 | Y80: =Y$59*Y52 -> 0 | Z80: 0 | AB80: =AB$59*AB52 -> 16199.99053 | AC80: -17999.98947 | AE80: =AE$59*AE52 -> 0 | AF80: 0 | AG80: F2 | AH80: 10 | AI80: RETAIL
D81: GOVT | E81: =1+E80 -> 11 | F81: FG | G81: =AE67+AF67-I81 -> 0 | I81: 0 | J81: 0 | K81: 0 | L81: 0 | N81: 0 | O81: 0 | P81: 0 | S81: =1+S80 -> 11 | T81: FG | U81: 0 | V81: 0 | Y81: =Y$59*Y53 -> 0 | Z81: 0 | AB81: =AB$59*AB53 -> 0 | AC81: 0 | AE81: =AE$59*AE53 -> 0 | AF81: 0 | AG81: FG | AH81: 11 | AI81: GOVT
I82: 0 | J82: I1 | K82: I2 | L82: I3 | N82: L1 | O82: L2 | P82: L3 | U82: G1 | V82: G2 | Y82: FI | Z82: FI | AB82: FL | AC82: FL | AE82: FG | AF82: FG
I83: 0 | J83: 1 | K83: 2 | L83: 3 | N83: 4 | O83: 5 | P83: 6 | U83: 7 | V83: 8 | Y83: 9 | Z83: 9 | AB83: 10 | AC83: 10 | AE83: 11 | AF83: 11
I84: VALUE | J84: CAPITAL | K84: GENERAL | L84: NON_DUR | N84: BOURGS | O84: PRLTRT | P84: DPNDNT | U84: LOCAL | V84: NATIONAL | Y84: COMMERCIAL BANKING | AB84: RETAIL BANKING | AE84: NATIONAL BANKING
J86: INDUSTRIES | N86: HOUSEHOLDS | U86: GOVERNMENT | AA86: FINANCIAL INTERMEDIATION

Sheet Physical
Z3: INDUSTRIES | AD3: HOUSEHOLDS
J4: INDUSTRIES | N4: HOUSEHOLDS | AP4: INDUSTRIES | AT4: HOUSEHOLDS
I6: VALUE | J6: CAPITAL | K6: GENERAL | L6: NON_DUR | N6: BOURGS | O6: PRLTRT | P6: DPNDNT | Y6: VALUE | Z6: CAPITAL | AA6: GENERAL | AB6: NON_DUR | AD6: BOURGS | AE6: PRLTRT | AF6: DPNDNT | AO6: VALUE | AP6: CAPITAL | AQ6: GENERAL | AR6: NON_DUR | AT6: BOURGS | AU6: PRLTRT | AV6: DPNDNT
E7: Physical | I7: 0 | J7: 1 | K7: 2 | L7: 3 | N7: 4 | O7: 5 | P7: 6 | Y7: 0 | Z7: 1 | AA7: 2 | AB7: 3 | AD7: 4 | AE7: 5 | AF7: 6 | AO7: 0 | AP7: 1 | AQ7: 2 | AR7: 3 | AT7: 4 | AU7: 5 | AV7: 6
E8: Stocks | I8: 0 | J8: I1 | K8: I2 | L8: I3 | N8: L1 | O8: L2 | P8: L3 | U8: Utility | Y8: 0 | Z8: I1 | AA8: I2 | AB8: I3 | AD8: L1 | AE8: L2 | AF8: L3 | AO8: 0 | AP8: I1 | AQ8: I2 | AR8: I3 | AT8: L1 | AU8: L2 | AV8: L3
E9: A+B+C > | I9: 0 | J9: 0 | K9: 0 | L9: 0 | N9: 0 | O9: 0 | P9: 0 | U9: U > | Y9: =Y65/I$59 -> 12148853.15 | Z9: =-SUM(Z11:Z25) -> -3724.352264 | AA9: =-SUM(AA11:AA25) -> -30850.03884 | AB9: -146608.7199 | AD9: =-SUM(AD11:AD25) -> -3705.643084 | AE9: -202961.6509 | AF9: 0 | AK9: H >
AM10: h
E11: 0 | F11: 0 | I11: 271197.0825 | J11: -1000 | K11: -2250 | L11: -3200 | N11: -876 | O11: -8766 | P11: -100 | U11: 0 | V11: 0 | Y11: =Y67/I$59 -> -2236304.749 | Z11: 1114.602897 | AA11: 8335.018713 | AB11: 35267.68255 | AD11: 876 | AE11: 8766 | AF11: 100 | AK11: 0 | AL11: 0 | AP11: 1 | AQ11: 1 | AR11: 1 | AT11: 0 | AU11: 0 | AV11: 0 | AW11: 0 | AX11: 0
C12: INDUSTRIES | D12: CAPITAL | E12: 1 | F12: I1 | I12: -71184.30104 | J12: 300 | K12: 600 | L12: 800 | N12: 20 | O12: 600 | P12: 0 | S12: INDUSTRIES | T12: CAPITAL | U12: 1 | V12: I1 | Y12: =Y68/I$59 -> -3756676.893 | Z12: 984.6028971 | AA12: 8511.048007 | AB12: 42087.23884 | AD12: 1412.31492 | AE12: 75957.22481 | AF12: 0 | AI12: INDUSTRIES | AJ12: CAPITAL | AK12: 1 | AL12: I1 | AM12: =AP11-AO12 -> 6 | AO12: =-SUM(AP12:AV12) -> -5 | AP12: 1 | AQ12: 1 | AR12: 1 | AT12: 1 | AU12: 1 | AV12: 0 | AW12: 1 | AX12: I1 | AY12: CAPITAL | AZ12: INDUSTRIES
D13: GENERAL | E13: 2 | F13: I2 | I13: -62182.93032 | J13: 250 | K13: 300 | L13: 700 | N13: 30 | O13: 600 | P13: 0 | T13: GENERAL | U13: 2 | V13: I2 | Y13: =Y69/I$59 -> -3270871.688 | Z13: 858.4507575 | AA13: 7485.018713 | AB13: 36643.44121 | AD13: 1217.167443 | AE13: 66061.09317 | AF13: 0 | AJ13: GENERAL | AK13: 2 | AL13: I2 | AM13: =AQ11-AO13 -> 6 | AO13: =-SUM(AP13:AV13) -> -5 | AP13: 1 | AQ13: 1 | AR13: 1 | AT13: 1 | AU13: 1 | AV13: 0 | AW13: 2 | AX13: I2 | AY13: GENERAL
D14: NON_DUR | E14: 3 | F14: I3 | I14: -53889.25987 | J14: 200 | K14: 450 | L14: 500 | N14: 20 | O14: 600 | P14: 0 | T14: NON_DUR | U14: 3 | V14: I3 | Y14: =Y70/I$59 -> -2808282.354 | Z14: 738.6397375 | AA14: 6363.432193 | AB14: 31567.68255 | AD14: 1050.971725 | AE14: 56643.43297 | AF14: 0 | AJ14: NON_DUR | AK14: 3 | AL14: I3 | AM14: =AR11-AO14 -> 6 | AO14: -5 | AP14: 1 | AQ14: 1 | AR14: 1 | AT14: 1 | AU14: 1 | AV14: 0 | AW14: 3 | AX14: I3 | AY14: NON_DUR
C16: HOUSEHOLDS | D16: BOURGS | E16: 4 | F16: L1 | I16: -57158.31733 | J16: 229.325283 | K16: 685.7584026 | L16: 996.0662009 | N16: 781.0724703 | O16: 198.4561854 | P16: 0 | S16: HOUSEHOLDS | T16: BOURGS | U16: 4 | V16: L1 | Y16: =Y72/I$59 -> -70811.79164 | Z16: 19.46675055 | AA16: 135.4401805 | AB16: 796.1502456 | AD16: -840.9275326 | AE16: 3000.796579 | AF16: 0 | AI16: HOUSEHOLDS | AJ16: BOURGS | AK16: 4 | AL16: L1 | AM16: =AT11+AT16-AO16 -> 3 | AO16: =-SUM(AP16:AV16)+AT16 -> -4 | AP16: 1 | AQ16: 1 | AR16: 1 | AT16: -1 | AU16: 1 | AV16: 0 | AW16: 4 | AX16: L1 | AY16: BOURGS | AZ16: HOUSEHOLDS
D17: PRLTRT | E17: 5 | F17: L2 | I17: -11869.11327 | J17: 12.97586183 | K17: 178.8354882 | L17: 159.6191781 | N17: 5.24169274 | O17: 6569.355352 | P17: 0 | T17: PRLTRT | U17: 5 | V17: L2 | Y17: =Y73/I$59 -> -18200.03933 | Z17: 8.6649777 | AA17: 25.92347953 | AB17: 261.4981457 | AD17: 8.822458794 | AE17: -7321.084177 | AF17: 0 | AJ17: PRLTRT | AK17: 5 | AL17: L2 | AM17: =AU11+AU17-AO17 -> 3 | AO17: =-SUM(AP17:AV17)+AU17 -> -4 | AP17: 1 | AQ17: 1 | AR17: 1 | AT17: 1 | AU17: -1 | AV17: 0 | AW17: 5 | AX17: L2 | AY17: PRLTRT
D18: DPNDNT | E18: 6 | F18: L3 | I18: -1641.242839 | J18: 1.297586183 | K18: 17.88354882 | L18: 15.96191781 | N18: 1 | O18: 20 | P18: 100 | T18: DPNDNT | U18: 6 | V18: L3 | Y18: =Y74/I$59 -> 937.5483758 | Z18: 0.05676079413 | AA18: -4.359788385 | AB18: -8.077746956 | AD18: -0.7366905436 | AE18: -5.926110968 | AF18: -100 | AJ18: DPNDNT | AK18: 6 | AL18: L3 | AM18: =AV11+AV18-AO18 -> 5 | AO18: =-SUM(AP18:AV18)+AV18 -> -5 | AP18: 1 | AQ18: 1 | AR18: 1 | AT18: 1 | AU18: 1 | AV18: 0 | AW18: 6 | AX18: L3 | AY18: DPNDNT
C20: GOVERNANCE | D20: LOCAL | E20: 7 | F20: G1 | I20: -4646.180604 | J20: 1.853286774 | K20: 2.336067382 | L20: 5.810098497 | N20: 6.88235633 | O20: 65.55708379 | P20: 0 | S20: GOVERNANCE | T20: LOCAL | U20: 7 | V20: G1 | Y20: =Y76/I$59 -> 4115.431019 | Z20: -0.04464959296 | AA20: 0.4291353939 | AB20: 0.1364028522 | AD20: -6.683759665 | AE20: -54.94209311 | AF20: 0 | AI20: GOVERNANCE | AJ20: LOCAL | AK20: 7 | AL20: G1 | AM20: =-AO20 -> 5 | AO20: =-SUM(AP20:AV20) -> -5 | AP20: 1 | AQ20: 1 | AR20: 1 | AT20: 1 | AU20: 1 | AV20: 0 | AW20: 7 | AX20: G1 | AY20: LOCAL | AZ20: GOVERNANCE
D21: NATIONAL | E21: 8 | F21: G2 | I21: -7076.967673 | J21: 2.792341163 | K21: 2.747746231 | L21: 8.18893145 | N21: 10.55106472 | O21: 100.0052512 | P21: 0 | T21: NATIONAL | U21: 8 | V21: G2 | Y21: =Y77/I$59 -> 6080.670642 | Z21: -0.01515824886 | AA21: 1.351353454 | AB21: 2.973548797 | AD21: -10.17826882 | AE21: -80.07931206 | AF21: 0 | AJ21: NATIONAL | AK21: 8 | AL21: G2 | AM21: =-AO21 -> 5 | AO21: -5 | AP21: 1 | AQ21: 1 | AR21: 1 | AT21: 1 | AU21: 1 | AV21: 0 | AW21: 8 | AX21: G2 | AY21: NATIONAL
C23: BANKING | D23: CMRCL | E23: =1+E21 -> 9 | F23: FI | I23: -792.7687878 | J23: 0.3429700101 | K23: 1.162848514 | L23: 1.610334287 | N23: 1.198652935 | O23: 6.339842385 | P23: 0 | S23: BANKING | T23: CMRCL | U23: =1+U21 -> 9 | V23: FI | Y23: =Y79/I$59 -> 679.8373746 | Z23: -0.00436369798 | AA23: -0.1306186401 | AB23: -0.345054324 | AD23: -1.156396091 | AE23: -4.08121429 | AF23: 0 | AI23: BANKING | AJ23: CMRCL | AK23: =1+AK21 -> 9 | AL23: FI | AM23: =-AO23 -> 5 | AO23: =-SUM(AP23:AV23) -> -5 | AP23: 1 | AQ23: 1 | AR23: 1 | AT23: 1 | AU23: 1 | AV23: 0 | AW23: =1+AW21 -> 9 | AX23: FI | AY23: CMRCL | AZ23: BANKING
D24: RETAIL | E24: =1+E23 -> 10 | F24: FL | I24: -756 | J24: 1.412671018 | K24: 11.27589825 | L24: 12.74333897 | N24: 0.05376301851 | O24: 6.286284795 | P24: 0 | T24: RETAIL | U24: =1+U23 -> 10 | V24: FL | Y24: =Y80/I$59 -> 480.8730637 | Z24: -0.06834267666 | AA24: -3.132527532 | AB24: -9.660825363 | AD24: 0.04918439326 | AE24: -0.7837461873 | AF24: 0 | AJ24: RETAIL | AK24: =1+AK23 -> 10 | AL24: FL | AM24: 5 | AO24: -5 | AP24: 1 | AQ24: 1 | AR24: 1 | AT24: 1 | AU24: 1 | AV24: 0 | AW24: =1+AW23 -> 10 | AX24: FL | AY24: RETAIL
D25: GOVT | E25: =1+E24 -> 11 | F25: FG | I25: 0 | J25: 0 | K25: 0 | L25: 0 | N25: 0 | O25: 0 | P25: 0 | T25: GOVT | U25: =1+U24 -> 11 | V25: FG | Y25: =Y81/I$59 -> 0 | Z25: 0 | AA25: 0 | AB25: 0 | AD25: 0 | AE25: 0 | AF25: 0 | AJ25: GOVT | AK25: =1+AK24 -> 11 | AL25: FG | AM25: 0 | AO25: 0 | AP25: 0 | AQ25: 0 | AR25: 0 | AT25: 0 | AU25: 0 | AV25: 0 | AW25: =1+AW24 -> 11 | AX25: FG | AY25: GOVT
I26: 0 | J26: I1 | K26: I2 | L26: I3 | N26: L1 | O26: L2 | P26: L3 | Y26: 0 | Z26: I1 | AA26: I2 | AB26: I3 | AD26: L1 | AE26: L2 | AF26: L3 | AO26: 0 | AP26: I1 | AQ26: I2 | AR26: I3 | AT26: L1 | AU26: L2 | AV26: L3
I27: 0 | J27: 1 | K27: 2 | L27: 3 | N27: 4 | O27: 5 | P27: 6 | Y27: 0 | Z27: 1 | AA27: 2 | AB27: 3 | AD27: 4 | AE27: 5 | AF27: 6 | AO27: 0 | AP27: 1 | AQ27: 2 | AR27: 3 | AT27: 4 | AU27: 5 | AV27: 6
I28: VALUE | J28: CAPITAL | K28: GENERAL | L28: NON_DUR | N28: BOURGS | O28: PRLTRT | P28: DPNDNT | Y28: VALUE | Z28: CAPITAL | AA28: GENERAL | AB28: NON_DUR | AD28: BOURGS | AE28: PRLTRT | AF28: DPNDNT | AO28: VALUE | AP28: CAPITAL | AQ28: GENERAL | AR28: NON_DUR | AT28: BOURGS | AU28: PRLTRT | AV28: DPNDNT
E29: Turnover | I29: 0 | J29: 1 | K29: 2 | L29: 3 | N29: 4 | O29: 5 | P29: 6
E30: Fractions | I30: 0 | J30: I1 | K30: I2 | L30: I3 | N30: L1 | O30: L2 | P30: L3
E31: V > | I31: 1 | J31: 0.1 | K31: 0.3333333333 | L31: 1 | N31: 1 | O31: 1 | P31: 1 | Z31: INDUSTRIES | AD31: HOUSEHOLDS
I32: 0 | J32: I1 | K32: I2 | L32: I3 | N32: L1 | O32: L2 | P32: L3
I33: 0 | J33: 1 | K33: 2 | L33: 3 | N33: 4 | O33: 5 | P33: 6
I34: VALUE | J34: CAPITAL | K34: GENERAL | L34: NON_DUR | N34: BOURGS | O34: PRLTRT | P34: DPNDNT | Y34: VALUE | Z34: CAPITAL | AA34: GENERAL | AB34: NON_DUR | AD34: BOURGS | AE34: PRLTRT | AF34: DPNDNT
I35: 0 | J35: 1 | K35: 2 | L35: 3 | N35: 4 | O35: 5 | P35: 6 | T35: E | Y35: 0 | Z35: 1 | AA35: 2 | AB35: 3 | AD35: 4 | AE35: 5 | AF35: 6
E36: Rates | I36: 0 | J36: I1 | K36: I2 | L36: I3 | N36: L1 | O36: L2 | P36: L3 | T36: U + E | U36: W > | Y36: 0 | Z36: I1 | AA36: I2 | AB36: I3 | AD36: L1 | AE36: L2 | AF36: L3
E37: E > | I37: =I65/I$59 -> 0 | J37: =J$31*J9 -> 0 | K37: =K$31*K9 -> 0 | L37: =L$31*L9 -> 0 | N37: =N$31*N9 -> 0 | O37: =O$31*O9 -> 0 | P37: =P$31*P9 -> 0 | AM37: l/Z | AO37: Z | AP37: Y | AQ37: t
W38: w
E39: 0 | F39: 0 | I39: =I67/I$59 -> 271197.0792 | J39: =J$31*J11 -> -100 | K39: -750 | L39: -3200 | N39: =N$31*N11 -> -876 | O39: -8766 | P39: -100 | U39: 0 | V39: 0 | Z39: =IF(AP11<>0,-AP40/(AO40-AP40),0) -> -0.09856072783 | AA39: =IF(AQ11<>0,-AP41/(AO41-AP41),0) -> -0.09887912323 | AB39: =IF(AR11<>0,-AP42/(AO42-AP42),0) -> -0.09978893845 | AK39: 0 | AL39: 0
C40: INDUSTRIES | D40: CAPITAL | E40: 1 | F40: I1 | I40: =I68/I$59 -> -71184.30015 | J40: 30 | K40: 200 | L40: 800 | N40: 20 | O40: 600 | P40: 0 | S40: INDUSTRIES | T40: CAPITAL | U40: 1 | V40: I1 | W40: =Z39-Y40 -> -0.005578907745 | Y40: =-SUM(Z40:AF40) -> -0.09298182009 | Z40: =IF(AP12<>0,J40/(Z12+J40),0) -> 0.02956821835 | AA40: 0.02295934999 | AB40: 0.01865356739 | AD40: =IF(AT12<>0,N40/(AD12+N40),0) -> 0.01396340967 | AE40: 0.007837274686 | AF40: 0 | AI40: INDUSTRIES | AJ40: CAPITAL | AK40: 1 | AL40: I1 | AM40: =(1-Z40)*(1-AA40)*(1-AB40)*(1-AD40)*(1-AE40)*(1-AF40) -> 0.9102819486 | AO40: =Z11 -> 1114.602897 | AP40: =AO40*(1-AM40) -> 100
D41: GENERAL | E41: 2 | F41: I2 | I41: =I69/I$59 -> -62182.92955 | J41: 25 | K41: 100 | L41: 700 | N41: 30 | O41: 600 | P41: 0 | T41: GENERAL | U41: 2 | V41: I2 | W41: =AA39-Y41 -> -0.005596929135 | Y41: =-SUM(Z41:AF41) -> -0.0932821941 | Z41: 0.02829812504 | AA41: 0.0131838831 | AB41: 0.01874492487 | AD41: 0.02405450861 | AE41: 0.009000752485 | AF41: 0 | AJ41: GENERAL | AK41: 2 | AL41: I2 | AM41: =(1-Z41)*(1-AA41)*(1-AB41)*(1-AD41)*(1-AE41)*(1-AF41) -> 0.9100181984 | AO41: =AA11 -> 8335.018713 | AP41: =AO41*(1-AM41) -> 750
D42: NON_DUR | E42: 3 | F42: I3 | I42: =I70/I$59 -> -53889.2592 | J42: 20 | K42: 150 | L42: 500 | N42: 20 | O42: 600 | P42: 0 | T42: NON_DUR | U42: 3 | V42: I3 | W42: =AB39-Y42 -> -0.005648428224 | Y42: =-SUM(Z42:AF42) -> -0.09414051022 | Z42: 0.02636297443 | AA42: 0.02302933316 | AB42: 0.01559202163 | AD42: 0.01867462934 | AE42: 0.01048155166 | AF42: 0 | AJ42: NON_DUR | AK42: 3 | AL42: I3 | AM42: =(1-Z42)*(1-AA42)*(1-AB42)*(1-AD42)*(1-AE42)*(1-AF42) -> 0.9092653736 | AO42: =AB11 -> 35267.68255 | AP42: =AO42*(1-AM42) -> 3200
C44: HOUSEHOLDS | D44: BOURGS | E44: 4 | F44: L1 | I44: =I72/I$59 -> -57158.31733 | J44: =J$31*J16 -> 22.9325283 | K44: 228.5861342 | L44: 996.0662009 | N44: =N$31*N16 -> 781.0724703 | O44: 198.4561854 | P44: 0 | S44: HOUSEHOLDS | T44: BOURGS | U44: 4 | V44: L1 | W44: =AD44-Y44 -> 0.2006580582 | Y44: =-SUM(Z44:AF44)+AD44 -> -1.786614633 | Z44: =IF(AP16<>0,J44/(Z16+J44),0) -> 0.5408707158 | AA44: 0.6279384895 | AB44: 0.5557733849 | AD44: =IF(AT16<>0,(AQ44+AP44)/(AO44-AP44),0) -> -1.585956575 | AE44: =IF(AU16<>0,O44/(AE16+O44),0) -> 0.06203204311 | AF44: =IF(AV16<>0,P44/(AF16+P44),0) -> 0 | AI44: HOUSEHOLDS | AJ44: BOURGS | AK44: 4 | AL44: L1 | AM44: =(1-Z44)*(1-AA44)*(1-AB44)*(1-AE44)*(1-AF44) -> 0.07117743214 | AO44: =AD16 -> -840.9275326 | AP44: =AO44*(1-AM44) -> -781.0724703 | AQ44: =AD11 -> 876
D45: PRLTRT | E45: 5 | F45: L2 | I45: =I73/I$59 -> -11869.11327 | J45: 1.297586183 | K45: 59.61182941 | L45: 159.6191781 | N45: 5.24169274 | O45: 6569.355352 | P45: 0 | T45: PRLTRT | U45: 5 | V45: L2 | W45: =AE45-Y45 -> -1.343214832 | Y45: =-SUM(Z45:AF45)+AE45 -> -1.578908914 | Z45: 0.1302462095 | AA45: 0.6969265693 | AB45: 0.3790373112 | AD45: =IF(AT17<>0,N45/(AD17+N45),0) -> 0.3726988242 | AE45: =IF(AU17<>0,(AQ45+AP45)/(AO45-AP45),0) -> -2.922123746 | AF45: =IF(AV17<>0,P45/(AF17+P45),0) -> 0 | AJ45: PRLTRT | AK45: 5 | AL45: L2 | AM45: =(1-Z45)*(1-AA45)*(1-AB45)*(1-AD45)*(1-AF45) -> 0.1026799865 | AO45: =AE17 -> -7321.084177 | AP45: =AO45*(1-AM45) -> -6569.355352 | AQ45: =AE11 -> 8766
D46: DPNDNT | E46: 6 | F46: L3 | I46: =I74/I$59 -> -1641.242819 | J46: 0.1297586183 | K46: 5.961182941 | L46: 15.96191781 | N46: 1 | O46: 20 | P46: 100 | T46: DPNDNT | U46: 6 | V46: L3 | W46: =AF46-Y46 -> 11.6616156 | Y46: =-SUM(Z46:AF46) -> -11.6616156 | Z46: 0.695684254 | AA46: 3.722494822 | AB46: 2.0245525 | AD46: =IF(AT18<>0,N46/(AD18+N46),0) -> 3.79781271 | AE46: =IF(AU18<>0,O46/(AE18+O46),0) -> 1.421071315 | AF46: =IF(AV18<>0,(AQ46+AP46)/(AO46-AP46),0) -> 0 | AJ46: DPNDNT | AK46: 6 | AL46: L3 | AM46: 0 | AO46: =AF18 -> -100 | AP46: =AO46*(1-AM46) -> -100 | AQ46: =AF11 -> 100
C48: GOVERNANCE | D48: LOCAL | E48: 7 | F48: G1 | I48: =I76/I$59 -> -4646.180546 | J48: =J$31*J20 -> 0.1853286774 | K48: 0.7786891274 | L48: 5.810098497 | N48: =N$31*N20 -> 6.88235633 | O48: 65.55708379 | P48: 0 | S48: GOVERNANCE | T48: LOCAL | U48: 7 | V48: G1 | W48: =-Y48 -> 43.7699923 | Y48: =-SUM(Z48:AF48) -> -43.7699923 | Z48: =IF(AP20<>0,J48/(Z20+J48),0) -> 1.31738615 | AA48: 0.6447038569 | AB48: 0.977061663 | AD48: =IF(AT20<>0,N48/(AD20+N48),0) -> 34.65494413 | AE48: 6.1758965 | AF48: 0 | AI48: GOVERNANCE | AJ48: LOCAL | AK48: 7 | AL48: G1
D49: NATIONAL | E49: 8 | F49: G2 | I49: =I77/I$59 -> -7076.967585 | J49: 0.2792341163 | K49: 0.9159154104 | L49: 8.18893145 | N49: 10.55106472 | O49: 100.0052512 | P49: 0 | T49: NATIONAL | U49: 8 | V49: G2 | W49: =-Y49 -> 35.51635702 | Y49: =-SUM(Z49:AF49) -> -35.51635702 | Z49: 1.057401114 | AA49: 0.4039730024 | AB49: 0.7336121784 | AD49: 28.30252315 | AE49: 5.018847575 | AF49: 0 | AJ49: NATIONAL | AK49: 8 | AL49: G2
C51: BANKING | D51: CMRCL | E51: =1+E49 -> 9 | F51: FI | I51: =I79/I$59 -> -792.768778 | J51: =J$31*J23 -> 0.03429700101 | K51: 0.3876161713 | L51: 1.610334287 | N51: =N$31*N23 -> 1.198652935 | O51: 6.339842385 | P51: 0 | S51: BANKING | T51: CMRCL | U51: =1+U49 -> 9 | V51: FI | W51: =-Y51 -> 35.0995717 | Y51: =-SUM(Z51:AF51) -> -35.0995717 | Z51: =IF(AP23<>0,J51/(Z23+J51),0) -> 1.145780704 | AA51: 1.508248618 | AB51: 1.272709862 | AD51: =IF(AT23<>0,N51/(AD23+N51),0) -> 28.3658886 | AE51: 2.806943913 | AF51: 0 | AI51: BANKING | AJ51: CMRCL | AK51: =1+AK49 -> 9 | AL51: FI
D52: RETAIL | E52: =1+E51 -> 10 | F52: FL | I52: =I80/I$59 -> -755.9999906 | J52: 0.1412671018 | K52: 3.758632751 | L52: 12.74333897 | N52: 0.05376301851 | O52: 6.286284795 | P52: 0 | T52: RETAIL | U52: =1+U51 -> 10 | V52: FL | W52: =-Y52 -> 13.73911305 | Y52: =-SUM(Z52:AF52) -> -13.73911305 | Z52: 1.937171277 | AA52: 6.003196651 | AB52: 4.13407387 | AD52: 0.52223769 | AE52: 1.142433564 | AF52: 0 | AJ52: RETAIL | AK52: =1+AK51 -> 10 | AL52: FL
D53: GOVT | E53: =1+E52 -> 11 | F53: FG | I53: =I81/I$59 -> 0 | J53: 0 | K53: 0 | L53: 0 | N53: 0 | O53: 0 | P53: 0 | T53: GOVT | U53: =1+U52 -> 11 | V53: FG | W53: =-Y53 -> 0 | Y53: =-SUM(Z53:AF53) -> 0 | Z53: 0 | AA53: 0 | AB53: 0 | AD53: 0 | AE53: 0 | AF53: 0 | AJ53: GOVT | AK53: =1+AK52 -> 11 | AL53: FG
I54: 0 | J54: I1 | K54: I2 | L54: I3 | N54: L1 | O54: L2 | P54: L3 | Y54: 0 | Z54: I1 | AA54: I2 | AB54: I3 | AD54: L1 | AE54: L2 | AF54: L3
I55: 0 | J55: 1 | K55: 2 | L55: 3 | N55: 4 | O55: 5 | P55: 6 | Y55: 0 | Z55: 1 | AA55: 2 | AB55: 3 | AD55: 4 | AE55: 5 | AF55: 6
I56: VALUE | J56: CAPITAL | K56: GENERAL | L56: NON_DUR | N56: BOURGS | O56: PRLTRT | P56: DPNDNT | Y56: VALUE | Z56: CAPITAL | AA56: GENERAL | AB56: NON_DUR | AD56: BOURGS | AE56: PRLTRT | AF56: DPNDNT
I57: 0 | J57: 1 | K57: 2 | L57: 3 | N57: 4 | O57: 5 | P57: 6
E58: Prices | I58: 0 | J58: I1 | K58: I2 | L58: I3 | N58: L1 | O58: L2 | P58: L3
E59: P > | I59: 2 | J59: 1509.107141 | K59: 175.7704097 | L59: 35.70163337 | N59: 1068.99988 | O59: 19.99999975 | P59: 0 | Z59: INDUSTRIES | AD59: HOUSEHOLDS | AP59: INDUSTRIES | AT59: HOUSEHOLDS
I60: 0 | J60: I1 | K60: I2 | L60: I3 | N60: L1 | O60: L2 | P60: L3
I61: 0 | J61: 1 | K61: 2 | L61: 3 | N61: 4 | O61: 5 | P61: 6
I62: VALUE | J62: CAPITAL | K62: GENERAL | L62: NON_DUR | N62: BOURGS | O62: PRLTRT | P62: DPNDNT | Y62: VALUE | Z62: CAPITAL | AA62: GENERAL | AB62: NON_DUR | AD62: BOURGS | AE62: PRLTRT | AF62: DPNDNT | AO62: VALUE | AP62: CAPITAL | AQ62: GENERAL | AR62: NON_DUR | AT62: BOURGS | AU62: PRLTRT | AV62: DPNDNT
I63: 0 | J63: 1 | K63: 2 | L63: 3 | N63: 4 | O63: 5 | P63: 6 | Y63: 0 | Z63: 1 | AA63: 2 | AB63: 3 | AD63: 4 | AE63: 5 | AF63: 6 | AO63: 0 | AP63: 1 | AQ63: 2 | AR63: 3 | AT63: 4 | AU63: 5 | AV63: 6
E64: Net Cash | I64: 0 | J64: I1 | K64: I2 | L64: I3 | N64: L1 | O64: L2 | P64: L3 | Y64: 0 | Z64: I1 | AA64: I2 | AB64: I3 | AD64: L1 | AE64: L2 | AF64: L3 | AO64: 0 | AP64: I1 | AQ64: I2 | AR64: I3 | AT64: L1 | AU64: L2 | AV64: L3
E65: Flows > | I65: =-SUM(J65:P65) -> 0 | J65: =J$59*J37 -> 0 | K65: =K$59*K37 -> 0 | L65: =L$59*L37 -> 0 | N65: =N$59*N37 -> 0 | O65: =O$59*O37 -> 0 | P65: =P$59*P37 -> 0 | U65: PU > | Y65: =-SUM(Z65:AF65) -> 24297706.31 | Z65: =J$59*Z9 -> -5620446.597 | AA65: =K$59*AA9 -> -5422523.967 | AB65: =L$59*AB9 -> -5234170.765 | AD65: =N$59*AD9 -> -3961332.011 | AE65: =O$59*AE9 -> -4059232.967 | AF65: =P$59*AF9 -> 0
G66: r | I66: -s | W66: u | AM66: z
E67: 0 | F67: 0 | G67: =-SUM(G68:G81) -> 6.070877134e-11 | I67: =-I65-SUM(I68:I81) -> 542394.1584 | J67: =-J65-SUM(J68:J81) -> -150910.7141 | K67: -131827.8073 | L67: -114245.2268 | N67: =-N65-SUM(N68:N81) -> -101477.5179 | O67: -43932.89241 | P67: 0 | U67: 0 | V67: 0 | W67: =-SUM(W68:W81) -> -24297706.31 | Y67: =-Y65-SUM(Y68:Y81) -> -4472609.497 | Z67: =J$59*Z11 -> 1682055.191 | AA67: 1465049.654 | AB67: 1259113.872 | AD67: =N$59*AD11 -> 936443.8946 | AE67: 175319.9978 | AF67: 0 | AK67: 0 | AL67: 0 | AP67: =J$59*(Z11+J39) -> 1531144.477 | AQ67: =K$59*(AA11+K39) -> 1333221.847 | AR67: =L$59*(AB11+L39) -> 1144868.645 | AW67: 0 | AX67: 0
C68: INDUSTRIES | D68: CAPITAL | E68: 1 | F68: I1 | G68: =J67-I68 -> -8542.113783 | I68: =-SUM(J68:P68) -> -142368.6003 | J68: =J$59*J40 -> 45273.21423 | K68: 35154.08194 | L68: 28561.30669 | N68: =N$59*N40 -> 21379.99759 | O68: 11999.99985 | P68: 0 | S68: INDUSTRIES | T68: CAPITAL | U68: 1 | V68: I1 | W68: =Z67-Y68 -> 9195408.977 | Y68: =-SUM(Z68:AF68) -> -7513353.786 | Z68: 1485871.263 | AA68: 1495990.395 | AB68: 1502583.171 | AD68: 1509764.48 | AE68: 1519144.477 | AF68: 0 | AI68: INDUSTRIES | AJ68: CAPITAL | AK68: 1 | AL68: I1 | AM68: =IF(AM12<>0,(W68+G68)/AM12,0) -> 1531144.477 | AO68: =IF(AO12<>0,(Y68+I68)/AO12,0) -> 1531144.477 | AP68: 1531144.477 | AQ68: 1531144.477 | AR68: 1531144.477 | AT68: =IF(AT12<>0,(AD68+N68)/AT12,0) -> 1531144.477 | AU68: 1531144.477 | AV68: 0 | AW68: 1 | AX68: I1 | AY68: CAPITAL | AZ68: INDUSTRIES
D69: GENERAL | E69: 2 | F69: I2 | G69: =K67-I69 -> -7461.948198 | I69: =-SUM(J69:P69) -> -124365.8591 | J69: 37727.67852 | K69: 17577.04097 | L69: 24991.14336 | N69: 32069.99639 | O69: 11999.99985 | P69: 0 | T69: GENERAL | U69: 2 | V69: I2 | W69: =AA67-Y69 -> 8006793.029 | Y69: =-SUM(Z69:AF69) -> -6541743.375 | Z69: 1295494.168 | AA69: 1315644.806 | AB69: 1308230.704 | AD69: 1301151.85 | AE69: 1321221.847 | AF69: 0 | AJ69: GENERAL | AK69: 2 | AL69: I2 | AM69: =IF(AM13<>0,(W69+G69)/AM13,0) -> 1333221.847 | AO69: 1333221.847 | AP69: 1333221.847 | AQ69: 1333221.847 | AR69: 1333221.847 | AT69: 1333221.847 | AU69: 1333221.847 | AV69: 0 | AW69: 2 | AX69: I2 | AY69: GENERAL
D70: NON_DUR | E70: 3 | F70: I3 | G70: =L67-I70 -> -6466.708369 | I70: -107778.5184 | J70: 30182.14282 | K70: 26365.56146 | L70: 17850.81668 | N70: 21379.99759 | O70: 11999.99985 | P70: 0 | T70: NON_DUR | U70: 3 | V70: I3 | W70: =AB67-Y70 -> 6875678.58 | Y70: -5616564.708 | Z70: 1114686.502 | AA70: 1118503.084 | AB70: 1127017.829 | AD70: 1123488.648 | AE70: 1132868.645 | AF70: 0 | AJ70: NON_DUR | AK70: 3 | AL70: I3 | AM70: =IF(AM14<>0,(W70+G70)/AM14,0) -> 1144868.645 | AO70: 1144868.645 | AP70: 1144868.645 | AQ70: 1144868.645 | AR70: 1144868.645 | AT70: 1144868.645 | AU70: 1144868.645 | AV70: 0 | AW70: 3 | AX70: I3 | AY70: NON_DUR
C72: HOUSEHOLDS | D72: BOURGS | E72: 4 | F72: L1 | G72: =N67-I72 -> 12839.11678 | I72: =-SUM(J72:P72)+N72 -> -114316.6347 | J72: =J$59*J44 -> 34607.64222 | K72: 40178.67846 | L72: 35561.19031 | N72: 0 | O72: =O$59*O44 -> 3969.123659 | P72: =P$59*P44 -> 0 | S72: HOUSEHOLDS | T72: BOURGS | U72: 4 | V72: L1 | W72: =AD67+AD72-Y72 -> 179116.0467 | Y72: =-SUM(Z72:AF72)+AD72 -> -141623.5833 | Z72: =J$59*Z16 -> 29377.41227 | AA72: 23806.37602 | AB72: 28423.86417 | AD72: =N$59*AD16 -> -898951.4312 | AE72: 60015.93083 | AF72: 0 | AI72: HOUSEHOLDS | AJ72: BOURGS | AK72: 4 | AL72: L1 | AM72: =IF(AM16<>0,(W72+G72)/AM16,0) -> 63985.05449 | AO72: =IF(AO16<>0,(Y72+I72)/AO16,0) -> 63985.05449 | AP72: 63985.05449 | AQ72: 63985.05449 | AR72: 63985.05449 | AT72: =N$59*(AD16+N44) -> -63985.05449 | AU72: =IF(AU16<>0,(AE72+O72)/AU16,0) -> 63985.05449 | AV72: =IF(AV16<>0,(AF72+P72)/AV16,0) -> 0 | AW72: 4 | AX72: L1 | AY72: BOURGS | AZ72: HOUSEHOLDS
D73: PRLTRT | E73: 5 | F73: L2 | G73: =O67-I73 -> -20194.66587 | I73: =-SUM(J73:P73)+O73 -> -23738.22654 | J73: 1958.196574 | K73: 10477.99568 | L73: 5698.665374 | N73: =N$59*N45 -> 5603.368908 | O73: 0 | P73: =P$59*P45 -> 0 | T73: PRLTRT | U73: 5 | V73: L2 | W73: =AE67+AE73-Y73 -> 65298.39476 | Y73: =-SUM(Z73:AF73)+AE73 -> -36400.07865 | Z73: 13076.37972 | AA73: 4556.580618 | AB73: 9335.910923 | AD73: 9431.207389 | AE73: -146421.6817 | AF73: 0 | AJ73: PRLTRT | AK73: 5 | AL73: L2 | AM73: =IF(AM17<>0,(W73+G73)/AM17,0) -> 15034.5763 | AO73: 15034.5763 | AP73: 15034.5763 | AQ73: 15034.5763 | AR73: 15034.5763 | AT73: =IF(AT17<>0,(AD73+N73)/AT17,0) -> 15034.5763 | AU73: =O$59*(AE17+O45) -> -15034.5763 | AV73: =IF(AV17<>0,(AF73+P73)/AV17,0) -> 0 | AW73: 5 | AX73: L2 | AY73: PRLTRT
D74: DPNDNT | E74: 6 | F74: L3 | G74: =P67-I74 -> 3282.485637 | I74: =-SUM(J74:P74)+P74 -> -3282.485637 | J74: 195.8196574 | K74: 1047.799568 | L74: 569.8665374 | N74: =N$59*N46 -> 1068.99988 | O74: =O$59*O46 -> 399.999995 | P74: =P$59*P46 -> 0 | T74: DPNDNT | U74: 6 | V74: L3 | W74: =AF67+AF74-Y74 -> -1875.096752 | Y74: =-SUM(Z74:AF74)+AF74 -> 1875.096752 | Z74: 85.65811975 | AA74: -766.3217908 | AB74: -288.3887603 | AD74: -787.5221025 | AE74: -118.5222179 | AF74: 0 | AJ74: DPNDNT | AK74: 6 | AL74: L3 | AM74: =IF(AM18<>0,(W74+G74)/AM18,0) -> 281.4777772 | AO74: 281.4777772 | AP74: 281.4777772 | AQ74: 281.4777772 | AR74: 281.4777772 | AT74: =IF(AT18<>0,(AD74+N74)/AT18,0) -> 281.4777772 | AU74: =IF(AU18<>0,(AE74+O74)/AU18,0) -> 281.4777772 | AV74: =-P$59*(AF18+P46) -> 0 | AW74: 6 | AX74: L3 | AY74: DPNDNT
C76: GOVERNANCE | D76: LOCAL | E76: 7 | F76: G1 | G76: =-I76 -> 9292.361092 | I76: =-SUM(J76:P76) -> -9292.361092 | J76: =J$59*J48 -> 279.6808305 | K76: 136.870507 | L76: 207.4300064 | N76: =N$59*N48 -> 7357.238089 | O76: 1311.14166 | P76: 0 | S76: GOVERNANCE | T76: LOCAL | U76: 7 | V76: G1 | W76: =-Y76 -> -8230.862037 | Y76: =-SUM(Z76:AF76) -> 8230.862037 | Z76: =J$59*Z20 -> -67.38101957 | AA76: 75.42930402 | AB76: 4.869804618 | AD76: =N$59*AD20 -> -7144.938278 | AE76: -1098.841849 | AF76: 0 | AI76: GOVERNANCE | AJ76: LOCAL | AK76: 7 | AL76: G1 | AM76: =IF(AM20<>0,(W76+G76)/AM20,0) -> 212.299811 | AO76: =IF(AO20<>0,(Y76+I76)/AO20,0) -> 212.299811 | AP76: 212.299811 | AQ76: 212.299811 | AR76: 212.299811 | AT76: =IF(AT20<>0,(AD76+N76)/AT20,0) -> 212.299811 | AU76: 212.299811 | AV76: 0 | AW76: 7 | AX76: G1 | AY76: LOCAL | AZ76: GOVERNANCE
D77: NATIONAL | E77: 8 | F77: G2 | G77: =-I77 -> 14153.93517 | I77: -14153.93517 | J77: 421.3941988 | K77: 160.990827 | L77: 292.3582283 | N77: 11279.08692 | O77: 2000.104999 | P77: 0 | T77: NATIONAL | U77: 8 | V77: G2 | W77: =-Y77 -> -12161.34128 | Y77: 12161.34128 | Z77: -22.8754216 | AA77: 237.5279503 | AB77: 106.1605489 | AD77: -10880.56814 | AE77: -1601.586221 | AF77: 0 | AJ77: NATIONAL | AK77: 8 | AL77: G2 | AM77: =IF(AM21<>0,(W77+G77)/AM21,0) -> 398.5187772 | AO77: 398.5187772 | AP77: 398.5187772 | AQ77: 398.5187772 | AR77: 398.5187772 | AT77: 398.5187772 | AU77: 398.5187772 | AV77: 0 | AW77: 8 | AX77: G2 | AY77: NATIONAL
C79: BANKING | D79: CMRCL | E79: =1+E77 -> 9 | F79: FI | G79: =-I79 -> 1585.537556 | I79: =-SUM(J79:P79) -> -1585.537556 | J79: =J$59*J51 -> 51.75784914 | K79: 68.13145325 | L79: 57.49156432 | N79: =N$59*N51 -> 1281.359843 | O79: 126.7968461 | P79: 0 | S79: BANKING | T79: CMRCL | U79: =1+U77 -> 9 | V79: FI | W79: =-Y79 -> -1359.674749 | Y79: =-SUM(Z79:AF79) -> 1359.674749 | Z79: =J$59*Z23 -> -6.585287783 | AA79: -22.95889189 | AB79: -12.31900297 | AD79: =N$59*AD23 -> -1236.187282 | AE79: -81.62428478 | AF79: 0 | AI79: BANKING | AJ79: CMRCL | AK79: =1+AK77 -> 9 | AL79: FI | AM79: =IF(AM23<>0,(W79+G79)/AM23,0) -> 45.17256135 | AO79: =IF(AO23<>0,(Y79+I79)/AO23,0) -> 45.17256135 | AP79: 45.17256135 | AQ79: 45.17256135 | AR79: 45.17256135 | AT79: =IF(AT23<>0,(AD79+N79)/AT23,0) -> 45.17256135 | AU79: 45.17256135 | AV79: 0 | AW79: =1+AW77 -> 9 | AX79: FI | AY79: CMRCL | AZ79: BANKING
D80: RETAIL | E80: =1+E79 -> 10 | F80: FL | G80: 1511.999981 | I80: -1511.999981 | J80: 213.1871922 | K80: 660.6564186 | L80: 454.9580159 | N80: 57.47266031 | O80: 125.7256943 | P80: 0 | T80: RETAIL | U80: =1+U79 -> 10 | V80: FL | W80: -961.7461274 | Y80: 961.7461274 | Z80: -103.1364214 | AA80: -550.6056478 | AB80: -344.9072451 | AD80: 52.57811047 | AE80: -15.67492355 | AF80: 0 | AJ80: RETAIL | AK80: =1+AK79 -> 10 | AL80: FL | AM80: =IF(AM24<>0,(W80+G80)/AM24,0) -> 110.0507708 | AO80: 110.0507708 | AP80: 110.0507708 | AQ80: 110.0507708 | AR80: 110.0507708 | AT80: 110.0507708 | AU80: 110.0507708 | AV80: 0 | AW80: =1+AW79 -> 10 | AX80: FL | AY80: RETAIL
D81: GOVT | E81: =1+E80 -> 11 | F81: FG | G81: 0 | I81: 0 | J81: 0 | K81: 0 | L81: 0 | N81: 0 | O81: 0 | P81: 0 | T81: GOVT | U81: =1+U80 -> 11 | V81: FG | W81: 0 | Y81: 0 | Z81: 0 | AA81: 0 | AB81: 0 | AD81: 0 | AE81: 0 | AF81: 0 | AJ81: GOVT | AK81: =1+AK80 -> 11 | AL81: FG | AM81: =IF(AM25<>0,(W81+G81)/AM25,0) -> 0 | AO81: 0 | AP81: 0 | AQ81: 0 | AR81: 0 | AT81: 0 | AU81: 0 | AV81: 0 | AW81: =1+AW80 -> 11 | AX81: FG | AY81: GOVT
I82: 0 | J82: I1 | K82: I2 | L82: I3 | N82: L1 | O82: L2 | P82: L3 | Y82: 0 | Z82: I1 | AA82: I2 | AB82: I3 | AD82: L1 | AE82: L2 | AF82: L3 | AO82: 0 | AP82: I1 | AQ82: I2 | AR82: I3 | AT82: L1 | AU82: L2 | AV82: L3
I83: 0 | J83: 1 | K83: 2 | L83: 3 | N83: 4 | O83: 5 | P83: 6 | Y83: 0 | Z83: 1 | AA83: 2 | AB83: 3 | AD83: 4 | AE83: 5 | AF83: 6 | AO83: 0 | AP83: 1 | AQ83: 2 | AR83: 3 | AT83: 4 | AU83: 5 | AV83: 6
I84: VALUE | J84: CAPITAL | K84: GENERAL | L84: NON_DUR | N84: BOURGS | O84: PRLTRT | P84: DPNDNT | Y84: VALUE | Z84: CAPITAL | AA84: GENERAL | AB84: NON_DUR | AD84: BOURGS | AE84: PRLTRT | AF84: DPNDNT | AO84: VALUE | AP84: CAPITAL | AQ84: GENERAL | AR84: NON_DUR | AT84: BOURGS | AU84: PRLTRT | AV84: DPNDNT
J86: INDUSTRIES | N86: HOUSEHOLDS
W87: u
W88: h/w-1 | Y88: Q | AM88: b | AO88: q
U89: 0 | V89: 0 | AK89: 0 | AL89: 0
S90: INDUSTRIES | T90: CAPITAL | U90: 1 | V90: I1 | W90: =W68/(AM12/W40-1) -> -8542.113783 | Y90: =IF(Y40<>0,I40/Y40,0) -> 765572.2386 | AI90: INDUSTRIES | AJ90: CAPITAL | AK90: 1 | AL90: I1 | AM90: =G68/W40 -> 1531144.477 | AO90: =I$59*Y90 -> 1531144.477
T91: GENERAL | U91: 2 | V91: I2 | W91: =W69/(AM13/W41-1) -> -7461.948198 | Y91: =IF(Y41<>0,I41/Y41,0) -> 666610.9234 | AJ91: GENERAL | AK91: 2 | AL91: I2 | AM91: =G69/W41 -> 1333221.847 | AO91: =I$59*Y91 -> 1333221.847
T92: NON_DUR | U92: 3 | V92: I3 | W92: =W70/(AM14/W42-1) -> -6466.708369 | Y92: =IF(Y42<>0,I42/Y42,0) -> 572434.3226 | AJ92: NON_DUR | AK92: 3 | AL92: I3 | AM92: =G70/W42 -> 1144868.645 | AO92: =I$59*Y92 -> 1144868.645
S94: HOUSEHOLDS | T94: BOURGS | U94: 4 | V94: L1 | W94: =W72/(AM16/W44-1) -> 12839.11678 | Y94: =IF(Y44<>0,I44/Y44,0) -> 31992.52724 | AI94: HOUSEHOLDS | AJ94: BOURGS | AK94: 4 | AL94: L1 | AM94: =G72/W44 -> 63985.05449 | AO94: =I$59*Y94 -> 63985.05449
T95: PRLTRT | U95: 5 | V95: L2 | W95: =W73/(AM17/W45-1) -> -20194.66587 | Y95: =IF(Y45<>0,I45/Y45,0) -> 7517.288149 | AJ95: PRLTRT | AK95: 5 | AL95: L2 | AM95: =G73/W45 -> 15034.5763 | AO95: =I$59*Y95 -> 15034.5763
T96: DPNDNT | U96: 6 | V96: L3 | W96: =W74/(AM18/W46-1) -> 3282.485637 | Y96: =IF(Y46<>0,I46/Y46,0) -> 140.7388886 | AJ96: DPNDNT | AK96: 6 | AL96: L3 | AM96: =G74/W46 -> 281.4777772 | AO96: =I$59*Y96 -> 281.4777772
S98: GOVERNANCE | T98: LOCAL | U98: 7 | V98: G1 | W98: =W76/(AM20/W48-1) -> 9292.361092 | Y98: =IF(Y48<>0,I48/Y48,0) -> 106.1499055 | AI98: GOVERNANCE | AJ98: LOCAL | AK98: 7 | AL98: G1 | AM98: =G76/W48 -> 212.299811 | AO98: =I$59*Y98 -> 212.299811
T99: NATIONAL | U99: 8 | V99: G2 | W99: =W77/(AM21/W49-1) -> 14153.93517 | Y99: =IF(Y49<>0,I49/Y49,0) -> 199.2593886 | AJ99: NATIONAL | AK99: 8 | AL99: G2 | AM99: =G77/W49 -> 398.5187772 | AO99: =I$59*Y99 -> 398.5187772
S101: BANKING | T101: CMRCL | U101: =1+U99 -> 9 | V101: FI | W101: =W79/(AM23/W51-1) -> 1585.537556 | Y101: =IF(Y51<>0,I51/Y51,0) -> 22.58628068 | AI101: BANKING | AJ101: CMRCL | AK101: =1+AK99 -> 9 | AL101: FI | AM101: =G79/W51 -> 45.17256135 | AO101: =I$59*Y101 -> 45.17256135
T102: RETAIL | U102: =1+U101 -> 10 | V102: FL | W102: =W80/(AM24/W52-1) -> 1511.999981 | Y102: =IF(Y52<>0,I52/Y52,0) -> 55.02538539 | AJ102: RETAIL | AK102: =1+AK101 -> 10 | AL102: FL | AM102: =G80/W52 -> 110.0507708 | AO102: =I$59*Y102 -> 110.0507708
T103: GOVT | U103: =1+U102 -> 11 | V103: FG | Y103: =IF(Y53<>0,I53/Y53,0) -> 0 | AJ103: GOVT | AK103: =1+AK102 -> 11 | AL103: FG

Sheet Financial
N4: GOVERNMENT | T4: FINANCIAL INTERMEDIATION
AF5: n
N6: LOCAL | O6: NATIONAL | R6: COMMERCIAL BANKING | U6: RETAIL BANKING | X6: NATIONAL BANKING | AB6: SAVINGS | AC6: INVESTMENT | AF6: -0.04535997347
I7: Physical | N7: 7 | O7: 8 | R7: 9 | S7: 9 | U7: 10 | V7: 10 | X7: 11 | Y7: 11
I8: Stocks | N8: G1 | O8: G2 | R8: FI | S8: FI | U8: FL | V8: FL | X8: FG | Y8: FG
I9: A+B+C > | N9: 0 | O9: 0 | R9: 0 | S9: 0 | U9: 0 | V9: 0 | X9: 0 | Y9: 0
R10: g | S10: k | U10: g | V10: k | X10: g | Y10: k | AE10: g | AF10: k | AG10: Margin
I11: 0 | J11: 0 | N11: 0 | O11: 0 | R11: 0 | S11: 0 | U11: 0 | V11: 0 | X11: 0 | Y11: 0 | Z11: 0 | AA11: 0 | AE11: =R23+U24+X25 -> 652974.8317 | AF11: =S23+V24+Y25 -> -812950.7788 | AG11: 0.1111111111
G12: INDUSTRIES | H12: CAPITAL | I12: 1 | J12: I1 | N12: 512.5268333 | O12: 854.2113889 | R12: 0 | S12: 158187.2942 | U12: 0 | V12: 0 | X12: 0 | Y12: 0 | Z12: I1 | AA12: 1 | AB12: CAPITAL | AC12: INDUSTRIES
H13: GENERAL | I13: 2 | J13: I2 | N13: 447.7168974 | O13: 746.1948291 | R13: 0 | S13: 138184.2276 | U13: 0 | V13: 0 | X13: 0 | Y13: 0 | Z13: I2 | AA13: 2 | AB13: GENERAL
H14: NON_DUR | I14: 3 | J14: I3 | N14: 388.0025069 | O14: 646.6708449 | R14: 0 | S14: 119753.8602 | U14: 0 | V14: 0 | X14: 0 | Y14: 0 | Z14: I3 | AA14: 3 | AB14: NON_DUR | AE14: 1/T | AF14: T
AE15: =1/AF15 -> 0.1666665866 | AF15: =GetTerm(NuK, Kppa0K, Gmma0K, Margin) -> 6.000002881
G16: HOUSEHOLDS | H16: BOURGS | I16: 4 | J16: L1 | N16: 6993.752238 | O16: 11656.25373 | R16: -300814.5973 | S16: 0 | U16: -318736.3903 | V16: 0 | X16: 0 | Y16: 0 | Z16: L1 | AA16: 4 | AB16: BOURGS | AC16: HOUSEHOLDS
H17: PRLTRT | I17: 5 | J17: L2 | N17: 1460.042177 | O17: 2433.403628 | R17: -33423.84415 | S17: 0 | U17: 0 | V17: 396825.3968 | X17: 0 | Y17: 0 | Z17: L2 | AA17: 5 | AB17: PRLTRT | AF17: -n
H18: DPNDNT | I18: 6 | J18: L3 | N18: -1230.932129 | O18: -2051.553549 | R18: 0 | S18: 0 | U18: 0 | V18: 0 | X18: 0 | Y18: 0 | Z18: L3 | AA18: 6 | AB18: DPNDNT | AF18: =-AF6 -> 0.04535997347
G20: GOVERNANCE | H20: LOCAL | I20: 7 | J20: G1 | N20: =-SUM(N9:N18,N21:N25) -> -9292.361207 | O20: 0 | R20: 0 | S20: 0 | U20: 0 | V20: 0 | X20: 0 | Y20: 0 | Z20: G1 | AA20: 7 | AB20: LOCAL | AC20: GOVERNANCE
H21: NATIONAL | I21: 8 | J21: G2 | N21: 500 | O21: =-SUM(O9:O20,O23:O25) -> -14653.93535 | R21: 0 | S21: 0 | U21: 0 | V21: 0 | X21: 0 | Y21: 0 | Z21: G2 | AA21: 8 | AB21: NATIONAL | AE21: NPV | AF21: =(1+AF18)^(-AF15) -> 0.7663104396
G23: BANKING | H23: CMRCL | I23: =1+I21 -> 9 | J23: FI | N23: 113.252684 | O23: 188.7544733 | R23: =-SUM(R9,R11:R21,R24:R25) -> 334238.4415 | S23: =-SUM(S9,S11:S21,S24:S25) -> -416125.382 | U23: 0 | V23: 0 | X23: 0 | Y23: 0 | Z23: F1 | AA23: 9 | AB23: CMRCL | AC23: BANKING
H24: RETAIL | I24: =1+I23 -> 10 | J24: FL | N24: 108 | O24: 180 | R24: 0 | S24: 0 | U24: =-SUM(U9,U11:U23,U25) -> 318736.3903 | V24: =-SUM(V9,V11:V23,V25) -> -396825.3968 | X24: 0 | Y24: 0 | Z24: F2 | AA24: 10 | AB24: RETAIL | AE24: 1/NPV-1 | AF24: =(1/AF21)-1 -> 0.3049541652
H25: GOVT | I25: =1+I24 -> 11 | J25: FG | R25: 0 | S25: 0 | U25: 0 | V25: 0 | X25: =-SUM(X9,X11:X24) -> 0 | Y25: =-SUM(Y9,Y11:Y24) -> 0 | Z25: FG | AA25: 11 | AB25: GOVT
N26: G1 | O26: G2 | R26: FI | S26: FI | U26: FL | V26: FL | X26: FG | Y26: FG
N27: 7 | O27: 8 | R27: 9 | S27: 9 | U27: 10 | V27: 10 | X27: 11 | Y27: 11
N28: LOCAL | O28: NATIONAL | R28: COMMERCIAL BANKING | U28: RETAIL BANKING | X28: NATIONAL BANKING
I29: Turnover | N29: 7 | O29: 8 | R29: 9 | S29: 9 | U29: 10 | V29: 10 | X29: 11 | Y29: 11
I30: Fractions | N30: G1 | O30: G2 | R30: FI | S30: FI | U30: FL | V30: FL | X30: FG | Y30: FG
I31: V > | N31: 1 | O31: 1 | R31: =IF(R11>0,-S39/R11/$AF24,$AE15) -> 0.1666665866 | S31: =AF18 -> 0.04535997347 | U31: =IF(U11>0,-V39/U11/$AF24,$AE15) -> 0.1666665866 | V31: =AF18 -> 0.04535997347 | X31: =IF(X11>0,-Y39/X11/$AF24,$AE15) -> 0.1666665866 | Y31: =AF18 -> 0.04535997347 | AA31: < | AB31: 1/T | AC31: -n
N32: G1 | O32: G2 | R32: FI | S32: FI | U32: FL | V32: FL | X32: FG | Y32: FG
N33: 7 | O33: 8 | R33: 9 | S33: 9 | U33: 10 | V33: 10 | X33: 11 | Y33: 11
N34: LOCAL | O34: NATIONAL | R34: COMMERCIAL BANKING | U34: RETAIL BANKING | X34: NATIONAL BANKING
N35: 7 | O35: 8 | R35: 9 | S35: 9 | U35: 10 | V35: 10 | X35: 11 | Y35: 11 | AB35: =AF21 -> 0.7663104396 | AC35: NPV | AD35: =AF21 -> 0.7663104396 | AE35: NPV | AF35: =AF21 -> 0.7663104396
I36: Rates | N36: G1 | O36: G2 | R36: FI | S36: FI | U36: FL | V36: FL | X36: FG | Y36: FG
I37: E > | N37: =N$31*N9 -> 0 | O37: 0 | R37: =R$31*R9 -> 0 | S37: 0 | U37: =U$31*U9 -> 0 | V37: 0 | X37: =X$31*X9 -> 0 | Y37: 0
R38: g / T | S38: -nkk | U38: g / T | V38: -nkk | X38: g / T | Y38: -nkk
I39: 0 | J39: 0 | N39: =N$31*N11 -> 0 | O39: =O$31*O11 -> 0 | R39: =R$31*R11 -> 0 | S39: 0 | U39: =U$31*U11 -> 0 | V39: 0 | X39: =X$31*X11 -> 0 | Y39: 0 | Z39: 0 | AA39: 0
G40: INDUSTRIES | H40: CAPITAL | I40: 1 | J40: I1 | N40: =N$31*N12 -> 512.5268333 | O40: 854.2113889 | R40: =R$31*R12 -> 0 | S40: 7175.37147 | U40: =U$31*U12 -> 0 | V40: 0 | X40: =X$31*X12 -> 0 | Y40: 0 | Z40: I1 | AA40: 1 | AB40: CAPITAL | AC40: INDUSTRIES
H41: GENERAL | I41: 2 | J41: I2 | N41: =N$31*N13 -> 447.7168974 | O41: 746.1948291 | R41: =R$31*R13 -> 0 | S41: 6268.032898 | U41: =U$31*U13 -> 0 | V41: 0 | X41: =X$31*X13 -> 0 | Y41: 0 | Z41: I2 | AA41: 2 | AB41: GENERAL
H42: NON_DUR | I42: 3 | J42: I3 | N42: =N$31*N14 -> 388.0025069 | O42: 646.6708449 | R42: =R$31*R14 -> 0 | S42: 5432.03192 | U42: =U$31*U14 -> 0 | V42: 0 | X42: =X$31*X14 -> 0 | Y42: 0 | Z42: I3 | AA42: 3 | AB42: NON_DUR
G44: HOUSEHOLDS | H44: BOURGS | I44: 4 | J44: L1 | N44: =N$31*N16 -> 6993.752238 | O44: 11656.25373 | R44: =R$31*R16 -> -50135.74215 | S44: 0 | U44: =U$31*U16 -> -53122.70621 | V44: 0 | X44: =X$31*X16 -> 0 | Y44: 0 | Z44: L1 | AA44: 4 | AB44: BOURGS | AC44: HOUSEHOLDS
H45: PRLTRT | I45: 5 | J45: L2 | N45: =N$31*N17 -> 1460.042177 | O45: 2433.403628 | R45: =R$31*R17 -> -5570.638016 | S45: 0 | U45: =U$31*U17 -> 0 | V45: 17999.98947 | X45: =X$31*X17 -> 0 | Y45: 0 | Z45: L2 | AA45: 5 | AB45: PRLTRT
H46: DPNDNT | I46: 6 | J46: L3 | N46: =N$31*N18 -> -1230.932129 | O46: -2051.553549 | R46: =R$31*R18 -> 0 | S46: 0 | U46: =U$31*U18 -> 0 | V46: 0 | X46: =X$31*X18 -> 0 | Y46: 0 | Z46: L3 | AA46: 6 | AB46: DPNDNT
G48: GOVERNANCE | H48: LOCAL | I48: 7 | J48: G1 | N48: =N$31*N20 -> -9292.361207 | O48: 0 | R48: =R$31*R20 -> 0 | S48: 0 | U48: =U$31*U20 -> 0 | V48: 0 | X48: =X$31*X20 -> 0 | Y48: 0 | Z48: G1 | AA48: 7 | AB48: LOCAL | AC48: GOVERNANCE
H49: NATIONAL | I49: 8 | J49: G2 | N49: =N$31*N21 -> 500 | O49: -14653.93535 | R49: =R$31*R21 -> 0 | S49: 0 | U49: =U$31*U21 -> 0 | V49: 0 | X49: =X$31*X21 -> 0 | Y49: 0 | Z49: G2 | AA49: 8 | AB49: NATIONAL
G51: BANKING | H51: CMRCL | I51: =1+I49 -> 9 | J51: FI | N51: =N$31*N23 -> 113.252684 | O51: 188.7544733 | R51: =R$31*R23 -> 55706.38016 | S51: -18875.43629 | U51: =U$31*U23 -> 0 | V51: 0 | X51: =X$31*X23 -> 0 | Y51: 0 | Z51: F1 | AA51: 9 | AB51: CMRCL | AC51: BANKING
H52: RETAIL | I52: =1+I51 -> 10 | J52: FL | N52: =N$31*N24 -> 108 | O52: 180 | R52: =R$31*R24 -> 0 | S52: 0 | U52: =U$31*U24 -> 53122.70621 | V52: -17999.98947 | X52: =X$31*X24 -> 0 | Y52: 0 | Z52: F2 | AA52: 10 | AB52: RETAIL
H53: GOVT | I53: =1+I52 -> 11 | J53: FG | N53: =N$31*N25 -> 0 | O53: 0 | R53: =R$31*R25 -> 0 | S53: 0 | U53: =U$31*U25 -> 0 | V53: 0 | X53: =X$31*X25 -> 0 | Y53: 0 | Z53: FG | AA53: 11 | AB53: GOVT
N54: G1 | O54: G2 | R54: FI | S54: FI | U54: FL | V54: FL | X54: FG | Y54: FG
N55: 7 | O55: 8 | R55: 9 | S55: 9 | U55: 10 | V55: 10 | X55: 11 | Y55: 11
N56: LOCAL | O56: NATIONAL | R56: COMMERCIAL BANKING | U56: RETAIL BANKING | X56: NATIONAL BANKING
N57: 7 | O57: 8 | R57: 9 | S57: 9 | U57: 10 | V57: 10 | X57: 11 | Y57: 11
I58: Prices | N58: G1 | O58: G2 | R58: FI | S58: FI | U58: FL | V58: FL | X58: FG | Y58: FG
I59: P > | N59: 1 | O59: 1 | R59: =1/AB35-1 -> 0.3049541652 | S59: 1 | U59: =1/AD35-1 -> 0.3049541652 | V59: 1 | X59: =1/AF35-1 -> 0.3049541652 | Y59: 1 | AA59: < | AB59: 1/NPV-1 | AC59: 1
N60: G1 | O60: G2 | R60: FI | S60: FI | U60: FL | V60: FL | X60: FG | Y60: FG
N61: 7 | O61: 8 | R61: 9 | S61: 9 | U61: 10 | V61: 10 | X61: 11 | Y61: 11 | AB61: Passive | AC61: Debt
N62: LOCAL | O62: NATIONAL | R62: COMMERCIAL BANKING | U62: RETAIL BANKING | X62: NATIONAL BANKING | AB62: Income | AC62: Service
M63: 0 | N63: 7 | O63: 8 | R63: 9 | S63: 9 | U63: 10 | V63: 10 | X63: 11 | Y63: 11
C64: Net Cash | I64: Financial | M64: 0 | N64: G1 | O64: G2 | R64: FI | S64: FI | U64: FL | V64: FL | X64: FG | Y64: FG
C65: Flows > | I65: Flows > | M65: =-SUM(N65:Y65) -> 0 | N65: =N$59*N37 -> 0 | O65: 0 | R65: =R$59*R37 -> 0 | S65: =S$59*S37 -> 0 | U65: =U$59*U37 -> 0 | V65: 0 | X65: =X$59*X37 -> 0 | Y65: 0
E66: r | K66: -e | R66: (1-1/NPV)g/T | S66: -nkk | U66: (1-1/NPV)g/T | V66: -nkk | X66: (1-1/NPV)g/T | Y66: -nkk
C67: 0 | D67: 0 | E67: =Physical!G67 -> 6.070877134e-11 | I67: 0 | J67: 0 | K67: =-SUM(K68:K81) -> -3.637978807e-12 | M67: =-M65-SUM(M68:M81) -> 3.637978807e-12 | N67: 5.684341886e-13 | O67: -9.094947018e-13 | R67: =-R65-SUM(R68:R81) -> 0 | S67: 0 | U67: =U$59*U39 -> 0 | V67: 0 | X67: 0 | Y67: 0 | Z67: 0 | AA67: 0
C68: 1 | D68: I1 | E68: =Physical!G68 -> -8542.113783 | G68: INDUSTRIES | H68: CAPITAL | I68: 1 | J68: I1 | K68: =0-M68 -> 8542.109692 | M68: =-SUM(N68:Y68) -> -8542.109692 | N68: =N$59*N40 -> 512.5268333 | O68: 854.2113889 | R68: =R$59*R40 -> 0 | S68: 7175.37147 | U68: =U$59*U40 -> 0 | V68: 0 | X68: =X$59*X40 -> 0 | Y68: 0 | Z68: I1 | AA68: 1 | AB68: CAPITAL | AC68: INDUSTRIES
C69: 2 | D69: I2 | E69: =Physical!G69 -> -7461.948198 | H69: GENERAL | I69: 2 | J69: I2 | K69: =0-M69 -> 7461.944625 | M69: =-SUM(N69:Y69) -> -7461.944625 | N69: =N$59*N41 -> 447.7168974 | O69: 746.1948291 | R69: 0 | S69: 6268.032898 | U69: =U$59*U41 -> 0 | V69: 0 | X69: =X$59*X41 -> 0 | Y69: 0 | Z69: I2 | AA69: 2 | AB69: GENERAL
C70: 3 | D70: I3 | E70: =Physical!G70 -> -6466.708369 | H70: NON_DUR | I70: 3 | J70: I3 | K70: 6466.705272 | M70: =-SUM(N70:Y70) -> -6466.705272 | N70: =N$59*N42 -> 388.0025069 | O70: 646.6708449 | R70: =R$59*R42 -> 0 | S70: 5432.03192 | U70: =U$59*U42 -> 0 | V70: 0 | X70: =X$59*X42 -> 0 | Y70: 0 | Z70: I3 | AA70: 3 | AB70: NON_DUR
C72: 4 | D72: L1 | E72: =Physical!G72 -> 12839.11678 | G72: HOUSEHOLDS | H72: BOURGS | I72: 4 | J72: L1 | K72: =0-M72 -> -12839.08795 | M72: =-SUM(N72:Y72) -> 12839.08795 | N72: =N$59*N44 -> 6993.752238 | O72: 11656.25373 | R72: =R$59*R44 -> -15289.10339 | S72: 0 | U72: =U$59*U44 -> -16199.99053 | V72: 0 | X72: =X$59*X44 -> 0 | Y72: 0 | Z72: L1 | AA72: 4 | AB72: BOURGS | AC72: HOUSEHOLDS
C73: 5 | D73: L2 | E73: =Physical!G73 -> -20194.66587 | H73: PRLTRT | I73: 5 | J73: L2 | K73: 20194.64601 | M73: =-SUM(N73:Y73) -> -20194.64601 | N73: =N$59*N45 -> 1460.042177 | O73: 2433.403628 | R73: =R$59*R45 -> -1698.789266 | S73: 0 | U73: =U$59*U45 -> 0 | V73: 17999.98947 | X73: =X$59*X45 -> 0 | Y73: 0 | Z73: L2 | AA73: 5 | AB73: PRLTRT
C74: 6 | D74: L3 | E74: =Physical!G74 -> 3282.485637 | H74: DPNDNT | I74: 6 | J74: L3 | K74: -3282.485678 | M74: =-SUM(N74:Y74) -> 3282.485678 | N74: =N$59*N46 -> -1230.932129 | O74: -2051.553549 | R74: =R$59*R46 -> 0 | S74: 0 | U74: =U$59*U46 -> 0 | V74: 0 | X74: =X$59*X46 -> 0 | Y74: 0 | Z74: L3 | AA74: 6 | AB74: DPNDNT
C76: 7 | D76: G1 | E76: =Physical!G76 -> 9292.361092 | G76: GOVERNANCE | H76: LOCAL | I76: 7 | J76: G1 | K76: =N67-M76 -> -9292.361207 | M76: =-SUM(N76:Y76) -> 9292.361207 | N76: =N$59*N48 -> -9292.361207 | O76: 0 | R76: =R$59*R48 -> 0 | S76: 0 | U76: =U$59*U48 -> 0 | V76: 0 | X76: =X$59*X48 -> 0 | Y76: 0 | Z76: G1 | AA76: 7 | AB76: LOCAL | AC76: GOVERNANCE
C77: 8 | D77: G2 | E77: =Physical!G77 -> 14153.93517 | H77: NATIONAL | I77: 8 | J77: G2 | K77: =O67-M77 -> -14153.93535 | M77: =-SUM(N77:Y77) -> 14153.93535 | N77: =N$59*N49 -> 500 | O77: -14653.93535 | R77: =R$59*R49 -> 0 | S77: 0 | U77: =U$59*U49 -> 0 | V77: 0 | X77: =X$59*X49 -> 0 | Y77: 0 | Z77: G2 | AA77: 8 | AB77: NATIONAL
C79: =1+C77 -> 9 | D79: FI | E79: =Physical!G79 -> 1585.537556 | G79: BANKING | H79: CMRCL | I79: =1+I77 -> 9 | J79: FI | K79: =R67+S67-M79 -> -1585.536472 | M79: =-SUM(N79:Y79) -> 1585.536472 | N79: =N$59*N51 -> 113.252684 | O79: 188.7544733 | R79: =R$59*R51 -> 16987.89266 | S79: =S$59*S51 -> -18875.43629 | U79: =U$59*U51 -> 0 | V79: 0 | X79: =X$59*X51 -> 0 | Y79: 0 | Z79: F1 | AA79: 9 | AB79: CMRCL | AC79: BANKING
C80: =1+C79 -> 10 | D80: FL | E80: =Physical!G80 -> 1511.999981 | H80: RETAIL | I80: =1+I79 -> 10 | J80: FL | K80: =U67+V67-M80 -> -1511.998947 | M80: =-SUM(N80:Y80) -> 1511.998947 | N80: =N$59*N52 -> 108 | O80: 180 | R80: =R$59*R52 -> 0 | S80: 0 | U80: =-SUM(U65,U67:U79,U81) -> 16199.99053 | V80: =V$59*V52 -> -17999.98947 | X80: =X$59*X52 -> 0 | Y80: 0 | Z80: F2 | AA80: 10 | AB80: RETAIL
C81: =1+C80 -> 11 | D81: FG | E81: =Physical!G81 -> 0 | H81: GOVT | I81: =1+I80 -> 11 | J81: FG | K81: =X67+Y67-M81 -> 0 | M81: =-SUM(N81:Y81) -> 0 | N81: =N$59*N53 -> 0 | O81: 0 | R81: =R$59*R53 -> 0 | S81: 0 | U81: =U$59*U53 -> 0 | V81: 0 | X81: =-SUM(X65,X67:X80) -> 0 | Y81: =Y$59*Y53 -> 0 | Z81: FG | AA81: 11 | AB81: GOVT
M82: 0 | N82: G1 | O82: G2 | R82: FI | S82: FI | U82: FL | V82: FL | X82: FG | Y82: FG
M83: 0 | N83: 7 | O83: 8 | R83: 9 | S83: 9 | U83: 10 | V83: 10 | X83: 11 | Y83: 11
N84: LOCAL | O84: NATIONAL | R84: COMMERCIAL BANKING | U84: RETAIL BANKING | X84: NATIONAL BANKING
N86: GOVERNMENT | T86: FINANCIAL INTERMEDIATION

Sheet Capital
F50: a = | G50: 0
C51: Cost of Sales = | D51: =-Physical!I68 -> 142368.6003 | F51: b = | G51: 0
C52: Sales = | D52: =-Physical!J67 -> 150910.7141 | F52: c = | G52: 0
C53: r = | D53: =D51-D52 -> -8542.113783 | F53: g = | G53: =SUM(G50:G52) -> 0 | I53: k = | J53: =Financial!S12 -> 158187.2942
D55: =Financial!N68 -> 512.5268333 | F55: T = | G55: =Financial!AF15 -> 6.000002881 | I55: n = | J55: =NuK -> -0.04535997347
D56: =Financial!O68 -> 854.2113889
C57: taxes = | D57: =D55+D56 -> 1366.738222 | F57: passive = | G57: =(1-(1-J55)^G55)/G55*G53 -> 0 | I57: -nk = | J57: =-J55*J53 -> 7175.37147 | L57: e = | M57: =-J57+G57-D57 -> -8542.109692
F58: income
I59: d = | J59: =-D53-D57 -> 7175.375561 | L59: -f = | M59: =Physical!W90 -> -8542.113783

Sheet General
F50: a = | G50: 0
C51: Cost of Sales = | D51: =-Physical!I69 -> 124365.8591 | F51: b = | G51: 0
C52: Sales = | D52: =-Physical!K67 -> 131827.8073 | F52: c = | G52: 0
C53: r = | D53: =D51-D52 -> -7461.948198 | F53: g = | G53: =SUM(G50:G52) -> 0 | I53: k = | J53: =Financial!S13 -> 138184.2276
D55: =Financial!N69 -> 447.7168974 | F55: T = | G55: =Financial!AF15 -> 6.000002881 | I55: n = | J55: =NuK -> -0.04535997347
D56: =Financial!O69 -> 746.1948291
C57: taxes = | D57: =D55+D56 -> 1193.911727 | F57: passive = | G57: =(1-(1-J55)^G55)/G55*G53 -> 0 | I57: -nk = | J57: =-J55*J53 -> 6268.032898 | L57: e = | M57: =-J57+G57-D57 -> -7461.944625
F58: income
I59: d = | J59: =-D53-D57 -> 6268.036472 | L59: -f = | M59: =Physical!W91 -> -7461.948198

Sheet Non-Dur
F50: a = | G50: 0
C51: Cost of Sales = | D51: =-Physical!I70 -> 107778.5184 | F51: b = | G51: 0
C52: Sales = | D52: =-Physical!L67 -> 114245.2268 | F52: c = | G52: 0
C53: r = | D53: =D51-D52 -> -6466.708369 | F53: g = | G53: =SUM(G50:G52) -> 0 | I53: k = | J53: =Financial!S14 -> 119753.8602
D55: =Financial!N70 -> 388.0025069 | F55: T = | G55: =Financial!AF15 -> 6.000002881 | I55: n = | J55: =NuK -> -0.04535997347
D56: =Financial!O42 -> 646.6708449
C57: taxes = | D57: =D55+D56 -> 1034.673352 | F57: passive = | G57: =(1-(1-J55)^G55)/G55*G53 -> 0 | I57: -nk = | J57: =-J55*J53 -> 5432.03192 | L57: e = | M57: =-J57+G57-D57 -> -6466.705272
F58: income
I59: d = | J59: =-D53-D57 -> 5432.035017 | L59: -f = | M59: =Physical!W92 -> -6466.708369

Sheet Bourgeois
F50: a = | G50: =(Financial!R16+Financial!U16+Financial!X16)/3 -> -206516.9959
C51: Consumption = | D51: =-Physical!I72 -> 114316.6347 | F51: b = | G51: =G50 -> -206516.9959
C52: Wages = | D52: =-Physical!N67 -> 101477.5179 | F52: c = | G52: =G50 -> -206516.9959
C53: r = | D53: =D51-D52 -> 12839.11678 | F53: g = | G53: =SUM(G50:G52) -> -619550.9876 | I53: k = | J53: =Financial!V16 -> 0
D55: 6993.752238 | F55: T = | G55: =Financial!AF15 -> 6.000002881 | I55: n = | J55: =NuK -> -0.04535997347
D56: 11656.25373
C57: taxes = | D57: =D55+D56 -> 18650.00597 | F57: passive = | G57: =(1-(1-J55)^G55)/G55*G53 -> 31489.09392 | I57: -nk = | J57: =-J55*J53 -> 0 | L57: e = | M57: =-J57+G57-D57 -> 12839.08795
F58: income
I59: d = | J59: =2*J57+D57-G57+M59 -> 0.02883325342 | L59: -f = | M59: =Physical!W94 -> 12839.11678

Sheet Proletarian
F50: a = | G50: =(Financial!R17+Financial!U17+Financial!X17)/3 -> -11141.28138
C51: Consumption = | D51: =-Physical!I73 -> 23738.22654 | F51: b = | G51: =G50 -> -11141.28138
C52: Wages = | D52: =-Physical!O67 -> 43932.89241 | F52: c = | G52: =G50 -> -11141.28138
C53: r = | D53: =D51-D52 -> -20194.66587 | F53: g = | G53: =SUM(G50:G52) -> -33423.84415 | I53: k = | J53: =Financial!V17 -> 396825.3968
D55: =Financial!N73 -> 1460.042177 | F55: T = | G55: =Financial!AF15 -> 6.000002881 | I55: n = | J55: =NuK -> -0.04535997347
D56: =Financial!O73 -> 2433.403628
C57: taxes = | D57: =D55+D56 -> 3893.445805 | F57: passive = | G57: =(1-(1-J55)^G55)/G55*G53 -> 1698.789266 | I57: -nk = | J57: =-J55*J53 -> 17999.98947 | L57: e = | M57: =-J57+G57-D57 -> -20194.64601
F58: income
I59: d = | J59: =2*J57+D57-G57+M59 -> 17999.96961 | L59: -f = | M59: =D53 -> -20194.66587

Sheet Dependent
F50: a = | G50: =(Financial!R18+Financial!U18+Financial!X18)/3 -> 0
C51: Consumption = | D51: =-Physical!I74 -> 3282.485637 | F51: b = | G51: =G50 -> 0
C52: Wages = | D52: =-Physical!P67 -> 0 | F52: c = | G52: =G50 -> 0
C53: r = | D53: =D51-D52 -> 3282.485637 | F53: g = | G53: =SUM(G50:G52) -> 0 | I53: k = | J53: =Financial!V18 -> 0
D55: =Financial!N74 -> -1230.932129 | F55: T = | G55: =Financial!AF15 -> 6.000002881 | I55: n = | J55: =NuK -> -0.04535997347
D56: =Financial!O74 -> -2051.553549
C57: taxes = | D57: =D55+D56 -> -3282.485678 | F57: passive = | G57: =(1-(1-J55)^G55)/G55*G53 -> 0 | I57: -nk = | J57: =-J55*J53 -> 0 | L57: e = | M57: =-J57+G57-D57 -> 3282.485678
F58: income
I59: d = | J59: =2*J57+D57-G57+M59 -> -4.065219855e-05 | L59: -f = | M59: =Physical!W96 -> 3282.485637

Sheet Local
F50: a = | G50: =(Financial!R20+Financial!U20+Financial!X20)/3 -> 0
C51: Cost of Sales = | D51: =-Physical!I76 -> 9292.361092 | F51: b = | G51: =G50 -> 0
C52: Sales = | D52: =-Financial!N67 -> -5.684341886e-13 | F52: c = | G52: =G50 -> 0
C53: r = | D53: =D51-D52 -> 9292.361092 | F53: g = | G53: =SUM(G50:G52) -> 0 | I53: k = | J53: =Financial!X20 -> 0
D55: =Financial!N76 -> -9292.361207 | F55: T = | G55: =Financial!AF15 -> 6.000002881 | I55: n = | J55: =NuK -> -0.04535997347
D56: =Financial!O76 -> 0
C57: taxes = | D57: =D55+D56 -> -9292.361207 | F57: passive = | G57: =(1-(1-J55)^G55)/G55*G53 -> 0 | I57: -nk = | J57: =-J55*J53 -> 0 | L57: e = | M57: =-J57+G57-D57 -> 9292.361207
F58: income
I59: d = | J59: =2*J57+D57-G57+M59 -> -0.0001150819808 | L59: -f = | M59: =Physical!W98 -> 9292.361092

Sheet National
F50: a = | G50: =(Financial!R21+Financial!U21+Financial!X21)/3 -> 0
C51: Cost of Sales = | D51: =-Physical!I77 -> 14153.93517 | F51: b = | G51: =G50 -> 0
C52: Sales = | D52: =-Financial!N67 -> -5.684341886e-13 | F52: c = | G52: =G50 -> 0
C53: r = | D53: =D51-D52 -> 14153.93517 | F53: g = | G53: =SUM(G50:G52) -> 0 | I53: k = | J53: =Financial!Y21 -> 0
D55: =Financial!N77 -> 500 | F55: T = | G55: =Financial!AF15 -> 6.000002881 | I55: n = | J55: =NuK -> -0.04535997347
D56: =Financial!O77 -> -14653.93535
C57: taxes = | D57: =D56+D55 -> -14153.93535 | F57: passive = | G57: =(1-(1-J55)^G55)/G55*G53 -> 0 | I57: -nk = | J57: =-J55*J53 -> 0 | L57: e = | M57: =-J57+G57-D57 -> 14153.93535
F58: income
I59: d = | J59: =2*J57+D57-G57+M59 -> -0.0001752905227 | L59: -f = | M59: =Physical!W99 -> 14153.93517

Sheet Commercial
F50: a = | G50: =Financial!R23/3 -> 111412.8138
C51: Cost of Sales = | D51: =-Physical!I79 -> 1585.537556 | F51: b = | G51: =G50 -> 111412.8138
C52: Sales = | D52: =-Financial!R67+Financial!S67 -> 0 | F52: c = | G52: =G50 -> 111412.8138
C53: r = | D53: =D51-D52 -> 1585.537556 | F53: g = | G53: =SUM(G50:G52) -> 334238.4415 | I53: k = | J53: =Financial!S23 -> -416125.382
D55: =Financial!N79 -> 113.252684 | F55: T = | G55: =Financial!AF15 -> 6.000002881 | I55: n = | J55: =NuK -> -0.04535997347
D56: =Financial!O79 -> 188.7544733
C57: taxes = | D57: =D55+D56 -> 302.0071572 | F57: passive = | G57: =(1-(1-J55)^G55)/G55*G53 -> -16987.89266 | I57: -nk = | J57: =-J55*J53 -> -18875.43629 | L57: e = | M57: =-J57+G57-D57 -> 1585.536472
F58: income
I59: d = | J59: =2*J57+D57-G57+M59 -> -18875.4352 | L59: -f = | M59: =Physical!W101 -> 1585.537556

Sheet Retail
F50: a = | G50: =Financial!U24/3 -> 106245.4634
C51: Cost of Sales = | D51: =-Physical!I80 -> 1511.999981 | F51: b = | G51: =G50 -> 106245.4634
C52: Sales = | D52: =-Financial!U67-Financial!V67 -> 0 | F52: c = | G52: =G50 -> 106245.4634
C53: r = | D53: =D51-D52 -> 1511.999981 | F53: g = | G53: =SUM(G50:G52) -> 318736.3903 | I53: k = | J53: =Financial!V24 -> -396825.3968
D55: =Financial!N80 -> 108 | F55: T = | G55: =Financial!AF15 -> 6.000002881 | I55: n = | J55: =NuK -> -0.04535997347
D56: =Financial!O80 -> 180
C57: taxes = | D57: =D55+D56 -> 288 | F57: passive = | G57: =(1-(1-J55)^G55)/G55*G53 -> -16199.99053 | I57: -nk = | J57: =-J55*J53 -> -17999.98947 | L57: e = | M57: =-J57+G57-D57 -> 1511.998947
F58: income
I59: d = | J59: =2*J57+D57-G57+M59 -> -17999.98844 | L59: -f = | M59: =Physical!W102 -> 1511.999981

Sheet Gvrnmt
F50: a = | G50: =Financial!X25/3 -> 0
C51: Cost of Sales = | D51: =-Physical!I81 -> 0 | F51: b = | G51: =G50 -> 0
C52: Sales = | D52: =-Financial!X67-Financial!Y67 -> 0 | F52: c = | G52: =G50 -> 0
C53: r = | D53: =D51-D52 -> 0 | F53: g = | G53: =SUM(G50:G52) -> 0 | I53: k = | J53: =Financial!Y25 -> 0
D55: =Financial!N81 -> 0 | F55: T = | G55: =Financial!AF15 -> 6.000002881 | I55: n = | J55: =NuK -> -0.04535997347
D56: =Financial!O81 -> 0
C57: taxes = | D57: =D55+D56 -> 0 | F57: passive = | G57: =(1-(1-J55)^G55)/G55*G53 -> 0 | I57: -nk = | J57: =-J55*J53 -> 0 | L57: e = | M57: =-J57+G57-D57 -> 0
F58: income
I59: d = | J59: =2*J57+D57-G57+M59 -> 0 | L59: -f = | M59: =Physical!W103 -> 0
